Workbook

Sheet Capacity Estimator
G3: Testing Site Capacity Estimator
C7: Content Management Information | H7: Launch of DRC INSIGHT
C9: Using COS Service Device for Content Hosting | D9: Yes - At the Site | P9: Average Time to Download Test Engine | Q9: ='Capacity Estimator Calculations'!E46 -> 4.8188 | R9: ='Capacity Estimator Calculations'!F46 -> Seconds (Good)
H11: Start of Test
C13: Testing Volume Information | P13: Average Time to Download a Fixed-Form Testing Form | Q13: ='Capacity Estimator Calculations'!E102 -> 2.670666667 | R13: ='Capacity Estimator Calculations'!F102 -> Seconds (Good)
C15: Students Testing with Fixed-Form at the Same Time | D15: 100 | P15: Average Time to Download a CAT Form | Q15: ='Capacity Estimator Calculations'!E104 -> 0.9154578667 | R15: ='Capacity Estimator Calculations'!F104 -> Seconds (Good)
C17: Students Testing with CAT at the Same Time | D17: 100 | P17: Average Time to Download an Accommodated Testing Form | Q17: ='Capacity Estimator Calculations'!E106 -> 1.337333333 | R17: ='Capacity Estimator Calculations'!F106 -> Seconds (Good)
C19: Accommodated Students Testing at the Same Time | D19: 50 | H19: During the Test
C21: Total Students Testing at the Same Time | D21: =SUM(D15:D20) -> 250 | P21: Average Wait Time Between Fixed-Form Items | Q21: ='Capacity Estimator Calculations'!E176 -> 0.02010208267 | R21: ='Capacity Estimator Calculations'!F176 -> Seconds (Good)
P23: Average Wait Time Between CAT Form Items | Q23: ='Capacity Estimator Calculations'!E178 -> 0.305612496 | R23: ='Capacity Estimator Calculations'!F178 -> Seconds (Good)
C25: Estimated % of Students Starting the Test at Nearly the Same Time | D25: 0.5 | P25: Average Wait Time Between Accommodated Form Items | Q25: ='Capacity Estimator Calculations'!E180 -> 0.4241020827 | R25: ='Capacity Estimator Calculations'!F180 -> Seconds (Good)
C27: Estimated % of Students Responding at Nearly the Same Time | D27: 0.1
C31: Network Information | I31: Good Performance | N31: Acceptable Performance | S31: Poor Performance
C33: Internet Service Provider Connection Capacity | D33: 10000 | E33: (Mbps) | L33: Average Form Size | O33: Average Size of | R33: Average Size of
L34: per Test | O34: Each Response | R34: Next Item
C35: Wide Area Network (WAN) Connection Capacity | D35: 1000 | E35: (Mbps) | J35: Fixed-Form Test | K35: 2 | M35: MB | N35: 5 | P35: KB | R35: N/A
C37: Local Area Network (LAN) Connection Capacity | D37: 1000 | E37: (Mbps) | J37: Computer-Adaptive Test (CAT) | K37: 700 | M37: KB | N37: 5 | P37: KB | Q37: 25 | S37: KB
C39: Testing Devices Average Connection Speed | D39: 3 | E39: (Mbps) | J39: TTS, VSL, HVA Accommodation | K39: 1 | M39: MB | N39: 5 | P39: KB | Q39: 1.5 | S39: MB
C41: Percent of Bandwidth Available for Testing | D41: 0.75 | J41: Test Engine | K41: 3.6 | M41: MB
C43: Type of Internet Connection | D43: Fiber
C45: Internet Response Time/Latency (1000 miles round trip) | D45: ='Capacity Estimator Calculations'!G18 -> 0.0165 | E45: (secs) | G45: =D45*1000 -> 16.5 | P45: Average CAT Scoring Process | Q45: 0.275 | R45: (secs)
C47: WAN Response Time/Latency (20 miles round trip) | D47: ='Capacity Estimator Calculations'!G19 -> 0.0023 | E47: (secs) | G47: =D47*1000 -> 2.3 | H47: (ms) | M47: Equipment Latency (round trip) | N47: ='Capacity Estimator Calculations'!G17 -> 0.002 | P47: (secs) | Q47: =N47*1000 -> 2 | R47: (ms)
C49: LAN Response Time/Latency (.2 miles round trip) | D49: ='Capacity Estimator Calculations'!G20 -> 0.002 | E49: (secs) | G49: =D49*1000 -> 2 | H49: (ms) | M49: Latency per mile | N49: =ROUND('Capacity Estimator Calculations'!E14,6) -> 8e-06 | P49: (secs) | Q49: =N49*1000 -> 0.008 | R49: (ms)
B50: Important: The Testing Site Capacity Estimator can only provide an estimate—it cannot factor in all possible variables and possible network traffic that can impact performance.
T51: ver. 4.2

Sheet Capacity Estimator Calculations (hidden)
B2: Latency Assumptions and calculations
C3: Type of Internet Connection | E3: Average Latency
C4: Fiber | D4: 1 | E4: 17ms
C5: Cable | D5: =28/17 -> 1.647058824 | E5: 28ms | R5: 10ms for every 1000 miles
C6: DSL | D6: =44/17 -> 2.588235294 | E6: 44ms | F6: 70ms
C7: 5G Cellular Data | D7: =25/17 -> 1.470588235 | E7: 25ms | F7: 50ms | G7: <10
C8: 4G Cellular Data | D8: =58.625/17 -> 3.448529412 | E8: =AVERAGE(53.3,58.4,59.4,63.4) & "ms" -> 58.625ms | F8: 98ms | G8: 60ms | H8: 40-50 | R8: The loss of speed measures roughly 8.2 microseconds per mile, or 0.82 milliseconds per 100 miles. The latency increases if the data packet must pass through a router or a switch
C9: 3G Cellular Data | D9: =110.75/17 -> 6.514705882 | E9: =AVERAGE(95.8,137,86.9,123.3) & "ms" -> 110.75ms | F9: 212ms | G9: 120ms
C10: Satellite | D10: =630/17 -> 37.05882353 | E10: 603ms | R10: =0.82/100 -> 0.0082
C11: Type of Internet Connection Selected | D11: ='Capacity Estimator'!D43 -> Fiber | R11: =9/1000 -> 0.009
C12: Internet Latency Factor | D12: =IF(D11=C4,D4,IF(D11=C5,D5,IF(D11=C6,D6,IF(D11=C7,D7,IF(D11=C8,D8,IF(D11=C9,D9,D10)))))) -> 1
D13: ms | E13: sec | R13: Round-trip distance divide by 124 miles/msec, and add 2 milliseconds (for the electronics)
C14: Speed of light in fibre: 124 mi / millisecond | D14: =1/124 -> 0.008064516129 | E14: =ROUND(D14/1000,9) -> 8.065e-06 | R14: =1/124 -> 0.008064516129
C15: Path adjustment | D15: 0.2 | R15: =V20/124+2 -> 2.806451613
D16: Distance | E16: round trip | F16: ms | G16: sec | H16: total
C17: Equipment Latency | D17: 1 | E17: =D17*2 -> 2 | F17: =E17 -> 2 | G17: =ROUND(F17/1000,9) -> 0.002
C18: ISP Latency | D18: 750 | E18: =D18*2 -> 1500 | F18: =(((E18*(1+$D$15)*$D$14)*D12)+$F$17) -> 16.51612903 | G18: =ROUND(F18/1000,4) -> 0.0165 | H18: =IF(D11=0,"Error",G18+G19-G20+G17) -> 0.0188
C19: WAN Latency | D19: 15 | E19: =D19*2 -> 30 | F19: =((E19*(1+$D$15)*$D$14)+$F$17) -> 2.290322581 | G19: =ROUND(F19/1000,4) -> 0.0023 | H19: =IF(D11=0,"Error",G19+G20+G17) -> 0.0063
C20: LAN Latency | D20: 0.1 | E20: 0.2 | F20: =(E20*$D$14)+$F$17 -> 2.001612903 | G20: =ROUND(F20/1000,4) -> 0.002 | H20: =IF(D11=0,"Error",G20+G17) -> 0.004 | V20: 100 | X20: =R15/1000 -> 0.002806451613
B22: Response time scales | D22: Performance
D23: Good | E23: Marginal | F23: Poor
C24: Test Engine | D24: 0 | E24: 15 | F24: 20 | H24: < 12 = Good, >16=Poor, else Acceptable
C25: Forms | D25: 0 | E25: 12 | F25: 20 | H25: < 11 = Good, >15=Poor, else Acceptable
C26: Responses | D26: 0 | E26: 1.5 | F26: 3 | H26: < 1.2 = Good, >2.2=Poor, else Acceptable
B28: TRUE | C28: Hide latency detail | E28: Links to data on other sheet
B29: FALSE | C29: Hide content detail | E29: Calculations | W29: Typical, approximate, values for latency that you might experience include:
B30: Test Engine Calucation
B31: A | C31: Avg. Internet Latency | E31: =H18 -> 0.0188 | F31: Currently only delivered via the Internet | W31: 10ms for a modern Carrier Ethernet network such as BT Ethernet Connect
B32: B | C32: # of Students | E32: ='Capacity Estimator'!$D$21 -> 250 | W32: 20ms for an mpls network such as BT IP Connect, when using Class of Service to prioritise traffic
B33: C | C33: Estimated % of Students Starting the Test at the Nearly Same Time | E33: =IF('Capacity Estimator'!$D$25>0,'Capacity Estimator'!$D$25,"ERROR") -> 0.5 | W33: 60ms for 4G cellular data which is often used for 4G WAN and internet connections
B34: D | C34: Estimated number of Students Starting the Test at the Nearly Same Time - (B*C) | E34: =E32*E33 -> 125 | W34: 120ms for 3G cellular data
B35: E | C35: Test Engine Size | E35: ='Capacity Estimator'!$K$41 -> 3.6 | F35: ='Capacity Estimator'!$M$41 -> MB | G35: =IF(F35="MB",E35,IF(F35="GB",E35*1024,E35*0.000976562)) -> 3.6 | H35: MB | W35: 800ms for satellite
B36: F | C36: Test Engine Size (Mbits) - (E*8) | E36: =8*G35 -> 28.8 | F36: Mb
B37: G | C37: Size of all Test Engine Payload | E37: =E34*E36 -> 3600 | F37: Mb
B38: H | C38: Location of Content - Test Engine currently comes from DRC via the Intenet - force to No | E38: No | H38: ='Capacity Estimator'!$D$9 -> Yes - At the Site
B39: I | C39: LAN - Yes - At the Site | E39: ='Capacity Estimator'!$D$37 -> 1000 | F39: (Mbps)
C40: WAN - Yes - At the District | E40: ='Capacity Estimator'!$D$35 -> 1000 | F40: (Mbps)
C41: ISP - No | E41: ='Capacity Estimator'!$D$33 -> 10000 | F41: (Mbps)
C42: DownLoad Bandwidth (Mbps) | E42: =IF(E38="Yes - At the Site",E39,IF(E38="Yes - at the District", E40,MIN(E40,E41))) -> 1000 | F42: (Mbps)
B43: J | C43: Percent of Bandwidth Available for Testing | E43: ='Capacity Estimator'!$D$41 -> 0.75
B44: K | C44: Average Available Download Bandwidth (Mbps) - (I*J) | E44: =E42*E43 -> 750 | F44: (Mbps)
B45: L | C45: Avg Time to Download Test Engine - (A+(G/K)) | E45: =IF(E32=0,0,E31+(E37/E44)) -> 4.8188 | F45: Latency + (Total payload / Avg Available Download Bandwidth))
B46: M | C46: Average download time converted to Sec, Min or Hours | E46: =IFERROR(IF(E45>3600,E45/3600,IF(E45>60,E45/60,E45)),"Error") -> 4.8188 | F46: =IFERROR(IF(E45>3600,I46,IF(E45>60,H46,G46)),"Error") -> Seconds (Good) | G46: =IFERROR(IF(E45>16,P49,IF(E45<12,P47,P48)),"Error") -> Seconds (Good) | H46: Minutes (Poor) | I46: Hours (Poor) | M46: 0-15-20 | O46: < 12 = Good, >16=Poor, else Acceptable
P47: Seconds (Good)
P48: Seconds (Acceptable)
B49: Type of testing as a percent of overall testing | P49: Seconds (Poor)
D50: Form Content Percent | G50: Item Content Percent
C51: Total Fixed Form Testers | D51: ='Capacity Estimator'!$D$15 -> 100 | E51: =D51/$D$54 -> 0.4 | G51: ='Capacity Estimator'!$D$15*0 -> 0 | H51: =G51/$G$54 -> 0
C52: Total CAT Form Testers | D52: ='Capacity Estimator'!$D$17 -> 100 | E52: =D52/$D$54 -> 0.4 | G52: ='Capacity Estimator'!$D$17 -> 100 | H52: =G52/$G$54 -> 0.6666666667
C53: Total Accommodated Form Testers | D53: ='Capacity Estimator'!$D$19 -> 50 | E53: =D53/$D$54 -> 0.2 | G53: ='Capacity Estimator'!$D$19 -> 50 | H53: =G53/$G$54 -> 0.3333333333
C54: Total Testers | D54: =SUM(D51:D53) -> 250 | E54: =SUM(E51:E53) -> 1 | G54: =SUM(G51:G53) -> 150 | H54: =SUM(H51:H53) -> 1
B57: All Form Download Calucation
B58: Fixed Form Download Calucation
B59: A | C59: # of Students taking Fixed Form Test | E59: ='Capacity Estimator'!$D$15 -> 100
B60: B | C60: Estimated % of Students Starting the Test at the Nearly Same Time | E60: =IF('Capacity Estimator'!$D$25>0,'Capacity Estimator'!$D$25,"ERROR") -> 0.5
B61: C | C61: Estimated number of Students Starting the Test at the Nearly Same Time - (A*B) | E61: =E59*E60 -> 50
B62: D | C62: Form Size | E62: ='Capacity Estimator'!$K$35 -> 2 | F62: ='Capacity Estimator'!$M$35 -> MB | G62: =IF(F62="MB",E62,IF(F62="GB",E62*1024,E62*0.000976562)) -> 2 | H62: MB
B63: E | C63: Item Size (Mbits) - (D*8) | E63: =8*G62 -> 16 | F63: Mb
B64: F | C64: Size of all Fixed Forms Testing Form Content | E64: =E61*E63 -> 800 | F64: Mb
B65: G | C65: Percent of all form content | E65: =E64/E86 -> 0.628220928
B67: Computer Adaptive (CAT) Form Download Calucation
B68: A | C68: # of Students taking a Computer Adaptive Test | E68: ='Capacity Estimator'!$D$17 -> 100
B69: B | C69: Estimated % of Students Starting the Test at the Nearly Same Time | E69: =IF('Capacity Estimator'!$D$25>0,'Capacity Estimator'!$D$25,"ERROR") -> 0.5
B70: C | C70: Estimated number of Students Starting the Test at the Nearly Same Time - (A*B) | E70: =E68*E69 -> 50
B71: D | C71: Form Size | E71: ='Capacity Estimator'!$K$37 -> 700 | F71: ='Capacity Estimator'!$M$37 -> KB | G71: =IF(F71="MB",E71,IF(F71="GB",E71*1024,E71*0.000976562)) -> 0.6835934 | H71: MB
B72: E | C72: Item Size (Mbits) - (D*8) | E72: =8*G71 -> 5.4687472 | F72: Mb
B73: F | C73: Size of all CAT Form Content | E73: =E70*E72 -> 273.43736 | F73: Mb
B74: G | C74: Percent of all form content | E74: =E73/E86 -> 0.21472384
B76: Accommodated Form Download Calucation
B77: A | C77: # of Students taking an Accommodated Test | E77: ='Capacity Estimator'!$D$19 -> 50
B78: B | C78: Estimated % of Students Starting the Test at the Nearly Same Time | E78: =IF('Capacity Estimator'!$D$25>0,'Capacity Estimator'!$D$25,"ERROR") -> 0.5
B79: C | C79: Estimated number of Students Starting the Test at the Nearly Same Time - (A*B) | E79: =E77*E78 -> 25
B80: D | C80: Form Size | E80: ='Capacity Estimator'!$K$39 -> 1 | F80: ='Capacity Estimator'!$M$39 -> MB | G80: =IF(F80="MB",E80,IF(F80="GB",E80*1024,E80*0.000976562)) -> 1 | H80: MB
B81: E | C81: Item Size (Mbits) - (D*8) | E81: =8*G80 -> 8 | F81: Mb
B82: F | C82: Size of all Accommodated Form Content | E82: =E79*E81 -> 200 | F82: Mb
B83: G | C83: Percent of all form content | E83: =E82/E86 -> 0.157055232
B85: All Form Download Calucation
B86: G | C86: Total Form Size | E86: =E64+E73+E82 -> 1273.43736 | F86: Mb
B87: H | C87: Location of Content - Using COS Service Device Content Hosting | E87: ='Capacity Estimator'!$D$9 -> Yes - At the Site
B88: I | C88: LAN - Yes - At the Site | E88: =$H$20 -> 0.004 | F88: (Secs)
C89: WAN - Yes - At the District | E89: =$H$19 -> 0.0063 | F89: (Secs)
C90: ISP - No | E90: =$H$18 -> 0.0188 | F90: (Secs)
C91: Avg. Network Latency | E91: =IF(E87=0,"Error",IF(E87="Yes - At the Site",E88,IF(E87="Yes - at the District",E89,E90))) -> 0.004 | F91: (Secs)
B92: J | C92: LAN - Yes - At the Site | E92: ='Capacity Estimator'!$D$37 -> 1000 | F92: (Mbps)
C93: WAN - Yes - At the District | E93: ='Capacity Estimator'!$D$35 -> 1000 | F93: (Mbps)
C94: ISP - No | E94: ='Capacity Estimator'!$D$33 -> 10000 | F94: (Mbps)
C95: DownLoad Bandwidth (Mbps) | E95: =IF(E87="Yes - At the Site",E92,IF(E87="Yes - at the District", MIN(E92,E93),MIN(E92,E93,E94))) -> 1000 | F95: (Mbps)
B96: K | C96: Percent of Bandwidth Available for Testing | E96: =IF('Capacity Estimator'!$D$41>0,'Capacity Estimator'!$D$41,"ERROR") -> 0.75
B97: L | C97: Average Available Download Bandwidth (Mbps) - (J*K) | E97: =E95*E96 -> 750 | F97: (Mbps)
C98: Bandwidth (Mbps) Available for Fixed Form Downloads | D98: =$E$51 -> 0.4 | E98: =E97*D98 -> 300 | F98: (Mbps)
C99: Bandwidth (Mbps) Available for CAT Form Downloads | D99: =$E$52 -> 0.4 | E99: =E97*D99 -> 300 | F99: (Mbps)
C100: Bandwidth (Mbps) Available for Accommodated Form Downloads | D100: =$E$53 -> 0.2 | E100: =E97*D100 -> 150 | F100: (Mbps)
B101: M | C101: Avg Time to Download Fixed Form Content - (I+(G/L)) | E101: =IF(E59=0,0,E91+(E64/E98)) -> 2.670666667
B102: N | C102: Average download time converted to Sec, Min or Hours | E102: =IFERROR(IF(E101>3600,E101/3600,IF(E101>60,E101/60,E101)),"Error") -> 2.670666667 | F102: =IFERROR(IF(E101>3600,I102,IF(E101>60,H102,G102)),"Error") -> Seconds (Good) | G102: =IFERROR(IF(E101>15,P49,IF(E101<11,P47,P48)),"Error") -> Seconds (Good) | H102: Minutes (Poor) | I102: Hours (Poor) | M102: 0-12-20 | O102: < 11 = Good, >15=Poor, else Acceptable
B103: M | C103: Avg Time to Download CAT Form Content - (I+(G/L)) | E103: =IF(E68=0,0,E91+(E73/E99)) -> 0.9154578667
B104: N | C104: Average download time converted to Sec, Min or Hours | E104: =IFERROR(IF(E103>3600,E103/3600,IF(E103>60,E103/60,E103)),"Error") -> 0.9154578667 | F104: =IFERROR(IF(E103>3600,I104,IF(E103>60,H104,G104)),"Error") -> Seconds (Good) | G104: =IFERROR(IF(E103>15,P49,IF(E101<11,P47,P48)),"Error") -> Seconds (Good) | H104: Minutes (Poor) | I104: Hours (Poor) | M104: 0-12-20 | O104: < 11 = Good, >15=Poor, else Acceptable
B105: M | C105: Avg Time to Download Accommodated Form Content - (I+(G/L)) | E105: =IF(E77=0,0,E91+(E82/E100)) -> 1.337333333
B106: N | C106: Average download time converted to Sec, Min or Hours | E106: =IFERROR(IF(E105>3600,E105/3600,IF(E105>60,E105/60,E105)),"Error") -> 1.337333333 | F106: =IFERROR(IF(E105>3600,I106,IF(E105>60,H106,G106)),"Error") -> Seconds (Good) | G106: =IFERROR(IF(E105>15,P49,IF(E101<11,P47,P48)),"Error") -> Seconds (Good) | H106: Minutes (Poor) | I106: Hours (Poor) | M106: 0-12-20 | O106: < 11 = Good, >15=Poor, else Acceptable
B107: M | C107: Avg Time to Download Form Content - (I+(G/L)) | E107: =E91+(E86/E97) -> 1.70191648 | F107: Latency + (Total payload / Avg Available Download Bandwidth)) | P107: Seconds (Good)
B108: N | C108: Average download time converted to Sec, Min or Hours | E108: =IFERROR(IF(E107>3600,E107/3600,IF(E107>60,E107/60,E107)),"Error") -> 1.70191648 | F108: =IFERROR(IF(E107>3600,I108,IF(E107>60,H108,G108)),"Error") -> Seconds | G108: Seconds | H108: Minutes (Poor) | I108: Hours (Poor) | P108: Seconds (Acceptable)
P109: Seconds (Poor)
B111: Response Time Between Items Calucation
B112: Fixed Form Item Download Calucation
B113: A | C113: # of Students taking Fixed Form Test | E113: ='Capacity Estimator'!$D$15 -> 100
B114: B | C114: Estimated % of Students Processing Responses At Once (Think Time) | E114: =IF('Capacity Estimator'!$D$27>0,'Capacity Estimator'!$D$27,"ERROR") -> 0.1
B115: C | C115: Estimated number of Students Starting the Test at the Nearly Same Time - (A*B) | E115: =E113*E114 -> 10
B116: D | C116: Item Size | E116: ='Capacity Estimator'!$Z$37 -> 0 | F116: ='Capacity Estimator'!$AA$37 -> 0 | G116: =IF(F116="MB",E116,IF(F116="GB",E116*1024,E116*0.000976562)) -> 0 | H116: MB
B117: E | C117: Item Size (Mbits) - (D*8) | E117: =8*G116 -> 0 | F117: Mb
B118: F | C118: Size of all Fixed Forms Testing Item Content | E118: =E115*E117 -> 0 | F118: Mb
B119: G | C119: Percent of all Item content | E119: =E118/E152 -> 0
B120: H | C120: Response Size | E120: ='Capacity Estimator'!$N$35 -> 5 | F120: ='Capacity Estimator'!$P$35 -> KB | G120: =IF(F120="MB",E120,IF(F120="GB",E120*1024,E120*0.000976562)) -> 0.00488281 | H120: MB
B121: I | C121: Item Size (Mbits) - (H*8) | E121: =8*G120 -> 0.03906248 | F121: Mb
B122: J | C122: Size of all Responses | E122: =E115*E121 -> 0.3906248 | F122: Mb
B123: K | C123: Size of all Fixed Forms Testing Item Content and Responses | E123: =E118+E122 -> 0.3906248 | F123: Mb
B125: Computer Adaptive (CAT) Form item Download Calucation
B126: A | C126: # of Students taking a Computer Adaptive Test | E126: ='Capacity Estimator'!$D$17 -> 100
B127: B | C127: Estimated % of Students Processing Responses At Once (Think Time) | E127: =IF('Capacity Estimator'!$D$27>0,'Capacity Estimator'!$D$27,"ERROR") -> 0.1
B128: C | C128: Estimated number of Students Starting the Test at the Nearly Same Time - (A*B) | E128: =E126*E127 -> 10
B129: D | C129: Item Size | E129: ='Capacity Estimator'!$Q$37 -> 25 | F129: ='Capacity Estimator'!$S$37 -> KB | G129: =IF(F129="MB",E129,IF(F129="GB",E129*1024,E129*0.000976562)) -> 0.02441405 | H129: MB
B130: E | C130: Item Size (Mbits) - (D*8) | E130: =8*G129 -> 0.1953124 | F130: Mb
B131: F | C131: Size of all CAT Item Content | E131: =E128*E130 -> 1.953124 | F131: Mb
B132: G | C132: Percent of all form content | E132: =E131/E152 -> 0.03103660806
B133: H | C133: Response Size | E133: ='Capacity Estimator'!$N$37 -> 5 | F133: ='Capacity Estimator'!$P$37 -> KB | G133: =IF(F133="MB",E133,IF(F133="GB",E133*1024,E133*0.000976562)) -> 0.00488281 | H133: MB
B134: I | C134: Item Size (Mbits) - (H*8) | E134: =8*G133 -> 0.03906248 | F134: Mb
B135: J | C135: Size of all Responses | E135: =E128*E134 -> 0.3906248 | F135: Mb
B136: K | C136: Size of all CAT Forms Testing Item Content and Responses | E136: =E131+E135 -> 2.3437488 | F136: Mb
B138: Accommodated Form Item Download Calucation
B139: A | C139: # of Students taking an Accommodated Test | E139: ='Capacity Estimator'!$D$19 -> 50
B140: B | C140: Estimated % of Students Processing Responses At Once (Think Time) | E140: =IF('Capacity Estimator'!$D$27>0,'Capacity Estimator'!$D$27,"ERROR") -> 0.1
B141: C | C141: Estimated number of Students Starting the Test at the Nearly Same Time - (A*B) | E141: =E139*E140 -> 5
B142: D | C142: Item Size | E142: ='Capacity Estimator'!$Q$39 -> 1.5 | F142: ='Capacity Estimator'!$S$39 -> MB | G142: =IF(F142="MB",E142,IF(F142="GB",E142*1024,E142*0.000976562)) -> 1.5 | H142: MB
B143: E | C143: Item Size (Mbits) - (D*8) | E143: =8*G142 -> 12 | F143: Mb
B144: F | C144: Size of all Accommodated Item Content | E144: =E141*E143 -> 60 | F144: Mb
B145: G | C145: Percent of all form content | E145: =E144/E152 -> 0.9534450879
B146: H | C146: Response Size | E146: ='Capacity Estimator'!$N$39 -> 5 | F146: ='Capacity Estimator'!$P$39 -> KB | G146: =IF(F146="MB",E146,IF(F146="GB",E146*1024,E146*0.000976562)) -> 0.00488281 | H146: MB
B147: I | C147: Item Size (Mbits) - (H*8) | E147: =8*G146 -> 0.03906248 | F147: Mb
B148: J | C148: Size of all Responses | E148: =E141*E147 -> 0.1953124 | F148: Mb
B149: K | C149: Size of all Accommodated Forms Testing Item Content and Responses | E149: =E144+E148 -> 60.1953124 | F149: Mb
B151: All Response Time Between Items Calucation
B152: G | C152: Total Item Size and response size | E152: =E123+E136+E149 -> 62.929686 | F152: Mb
B153: H | C153: Location of Content - Using COS Service Device Content Hosting | E153: ='Capacity Estimator'!$D$9 -> Yes - At the Site
B154: I | C154: LAN - Yes - At the Site | E154: =$H$20 -> 0.004 | F154: (Secs)
C155: WAN - Yes - At the District | E155: =$H$19 -> 0.0063 | F155: (Secs)
C156: ISP - No | E156: =$H$18 -> 0.0188 | F156: (Secs)
C157: Avg. Network Latency | E157: =IF(E153=0,"Error",IF(E153="Yes - At the Site",E154,IF(E153="Yes - at the District", E155,E156))) -> 0.004 | F157: (Secs)
B158: J | C158: LAN - Yes - At the Site | E158: ='Capacity Estimator'!$D$37 -> 1000 | F158: (Mbps)
C159: WAN - Yes - At the District | E159: ='Capacity Estimator'!$D$35 -> 1000 | F159: (Mbps)
C160: ISP - No | E160: ='Capacity Estimator'!$D$33 -> 10000 | F160: (Mbps)
C161: DownLoad Bandwidth (Mbps) | E161: =IF(E153="Yes - At the Site",E158,IF(E153="Yes - at the District", MIN(E158,E159),MIN(E158,E159,E160))) -> 1000 | F161: (Mbps)
B162: K | C162: Percent of Bandwidth Available for Testing | E162: =IF('Capacity Estimator'!$D$41>0,'Capacity Estimator'!$D$41,"ERROR") -> 0.75
B163: L | C163: Average Available Download Bandwidth (Mbps) - (J*K) | E163: =E161*E162 -> 750 | F163: (Mbps)
B164: M | C164: Bandwidth (Mbps) Available for Fixed Form Item Downloads | D164: =$E$51 -> 0.4 | E164: =E163*D164 -> 300 | F164: (Mbps)
C165: Bandwidth (Mbps) Available for CAT Item Downloads | D165: =$E$52 -> 0.4 | E165: =E163*D165 -> 300 | F165: (Mbps)
C166: Bandwidth (Mbps) Available for Accommodated Item Downloads | D166: =$E$53 -> 0.2 | E166: =E163*D166 -> 150 | F166: (Mbps)
B167: N | C167: Internet Latency for Responses + Item Latency from Content source | E167: =E156+E157 -> 0.0228
B168: P | C168: Avg Time to Download Fixed Form Item Content and process response - (N-I+(K/M)) | E168: =IF(E113=0,0,E167-E157+(E123/E164)) -> 0.02010208267 | F168: No item content download required
C169: Avg Time to Download CAT Item Content and process response - (N+(K/M)) | E169: =IF(E126=0,0,E167+(E136/E165)) -> 0.030612496
C170: Avg Time to Download Accommodated Item Content and process response - (N+(K/M)) | E170: =IF(E139=0,0,E167+(E149/E166)) -> 0.4241020827
B171: Q | C171: Average time to process a Fixed Form score | E171: 0 | F171: (secs)
C172: Average time to process a CAT Form score | E172: =IF(E126=0,0,'Capacity Estimator'!$Q$45) -> 0.275 | F172: ='Capacity Estimator'!$R$45 -> (secs)
C173: Average time to process an Accommodated Form score | E173: 0 | F173: (secs)
B175: P | C175: Average Wait Time Between Fixed Form Items - (N+O) | E175: =E168+E171 -> 0.02010208267
B176: Q | C176: Average download time converted to Sec, Min or Hours | E176: =IFERROR(IF(E175>3600,E175/3600,IF(E175>60,E175/60,E175)),"Error") -> 0.02010208267 | F176: =IFERROR(IF(E175>3600,I176,IF(E175>60,H176,G176)),"Error") -> Seconds (Good) | G176: =IFERROR(IF(E175>2.2,P49,IF(E175<1.2,P47,P48)),"Error") -> Seconds (Good) | H176: Minutes (Poor) | I176: Hours (Poor) | M176: 0-1.5-3.0 | O176: < 1.2 = Good, >2.2=Poor, else Acceptable
B177: P | C177: Average Wait Time Between Fixed Form Items - (N+O) | E177: =E169+E172 -> 0.305612496
B178: Q | C178: Average download time converted to Sec, Min or Hours | E178: =IFERROR(IF(E177>3600,E177/3600,IF(E177>60,E177/60,E177)),"Error") -> 0.305612496 | F178: =IFERROR(IF(E177>3600,I178,IF(E177>60,H178,G178)),"Error") -> Seconds (Good) | G178: =IFERROR(IF(E177>2.2,P49,IF(E177<1.2,P47,P48)),"Error") -> Seconds (Good) | H178: Minutes (Poor) | I178: Hours (Poor) | M178: 0-1.5-3.0 | O178: < 1.2 = Good, >2.2=Poor, else Acceptable
B179: P | C179: Average Wait Time Between Fixed Form Items - (N+O) | E179: =E170+E173 -> 0.4241020827
B180: Q | C180: Average download time converted to Sec, Min or Hours | E180: =IFERROR(IF(E179>3600,E179/3600,IF(E179>60,E179/60,E179)),"Error") -> 0.4241020827 | F180: =IFERROR(IF(E179>3600,I180,IF(E179>60,H180,G180)),"Error") -> Seconds (Good) | G180: =IFERROR(IF(E179>2.2,P49,IF(E179<1.2,P47,P48)),"Error") -> Seconds (Good) | H180: Minutes (Poor) | I180: Hours (Poor) | M180: 0-1.5-3.0 | O180: < 1.2 = Good, >2.2=Poor, else Acceptable
B185: Old fomulas | D185: AC | E185: Avg. network Latency
B186: Content | D186: AB | E186: # of Students
B187: $AC7+(($AB7*$W$2)*($K$2/($Q$2*$T$2))) | D187: W | E187: Estimated % of Students Starting the Test at the Exact Same Time
D188: X | E188: Estimated % of Students Processing Responses At Once (Think Time)
B189: Response | D189: K | E189: WBTE Size (Mbits)
B190: $AC120+(($AB120*$X$2)*($O$2/($R$2*$T$2))) | D190: O | E190: Response Size (Mbits)
D191: Q | E191: DownLoad Bandwidth (Mbps)
B192: Cat Response | E192: LAN
B193: $AC7+(($AB7*$X$2)*(($O$2+$P$2)/($R$2*$T$2)))+($G$2) | E193: WAN
E194: ISP
D195: R | E195: UpLoad Bandwidth (Mbps)
D196: G | E196: Avg CAT Scoring Process (secs)
D197: T | E197: Percent of Bandwidth Available for Testing

Sheet Capacity Estimator Table (hidden)
A1: Test Engine Size | B1: ="Fixed Form Test Size (" & 'Capacity Estimator'!M35 & ")" -> Fixed Form Test Size (MB) | C1: ="Fixed Form Response Size (" & 'Capacity Estimator'!P35 & ")" -> Fixed Form Response Size (KB) | D1: ="CAT Form Test Size (" & 'Capacity Estimator'!M37 & ")" -> CAT Form Test Size (KB) | E1: ="Avg CAT Item Size (" & 'Capacity Estimator'!S37 & ")" -> Avg CAT Item Size (KB) | F1: ="CAT Form Response Size (" & 'Capacity Estimator'!P37 & ")" -> CAT Form Response Size (KB) | G1: Avg CAT Scoring Process (secs) | H1: ="Accommodation Form Test Size (" & 'Capacity Estimator'!S37 & ")" -> Accommodation Form Test Size (KB) | I1: ="Avg Accommodation Item Size (" & 'Capacity Estimator'!V35 & ")" -> Avg Accommodation Item Size () | J1: ="Accommodation Form Response Size (" & 'Capacity Estimator'!T35 & ")" -> Accommodation Form Response Size () | K1: WBTE Size (Mbits) | L1: Fixed Form Test Size (Mbits) | M1: CAT Form Test Size (Mbits) | N1: Total Download of WBTE & Form (Mbits) | O1: ` | P1: ="Avg CAT Item Size (Mbits)" -> Avg CAT Item Size (Mbits) | Q1: DownLoad Bandwidth (Mbps) | R1: UpLoad Bandwidth (Mbps) | S1: Local Area Network (LAN) Connection Speed (Mbps) | T1: Percent of Bandwidth Available for Testing | U1: TSM Download Response Time Factor | V1: TSM Upload Response Time Factor | W1: Estimated % of Students Starting the Test at the Exact Same Time | X1: Estimated % of Students Processing Responses At Once (Think Time) | Y1: Internet Response Time/Latency (secs) | Z1: WAN Response Time/Latency (secs) | AA1: LAN Response Time/Latency (secs) | AB1: # of Students | AC1: Avg. Internet Latency | AD1: Avg LAN Latency | AF1: ="Avg Time to Download Test Engine" -> Avg Time to Download Test Engine | AI1: ="Avg Fixed Form Download without Content Hosting" -> Avg Fixed Form Download without Content Hosting | AK1: ="Avg Fixed Form Download with Content Hosting" -> Avg Fixed Form Download with Content Hosting | AM1: ="Avg Fixed Form Test and Test Engine Download Time with Content Hosting" -> Avg Fixed Form Test and Test Engine Download Time with Content Hosting | AP1: ="Avg Wait Between Fixed Form Items" -> Avg Wait Between Fixed Form Items | AR1: ="Avg Wait Time Between Items with Response Caching " -> Avg Wait Time Between Items with Response Caching | AT1: Item Latency w/o Response Caching | AW1: ="Avg CAT Form Download without Content Hosting" -> Avg CAT Form Download without Content Hosting | AY1: ="Avg CAT Form Download with Content Hosting" -> Avg CAT Form Download with Content Hosting | BB1: ="Avg Wait Between CAT Items" -> Avg Wait Between CAT Items | BE1: ="Average Time to Download WBTE without Hosting" -> Average Time to Download WBTE without Hosting | BG1: ="Max Wait Time without TSM (" & 'Capacity Estimator'!$AN$94 & " MB Test)" -> Max Wait Time without TSM ( MB Test) | BH1: ="Average Wait Time without TSM (" & 'Capacity Estimator'!$AN$94 & " MB Test)" -> Average Wait Time without TSM ( MB Test) | BI1: ="Max Wait Time with TSM (" & 'Capacity Estimator'!$AN$94 & " MB Test)" -> Max Wait Time with TSM ( MB Test) | BJ1: ="Average Wait Time with TSM (" & 'Capacity Estimator'!$AN$94 & " MB Test)" -> Average Wait Time with TSM ( MB Test)
A2: ='Capacity Estimator'!K41 -> 3.6 | B2: ='Capacity Estimator'!K35 -> 2 | C2: ='Capacity Estimator'!N35 -> 5 | D2: ='Capacity Estimator'!K37 -> 700 | E2: ='Capacity Estimator'!Q37 -> 25 | F2: ='Capacity Estimator'!N37 -> 5 | G2: 0.275 | H2: ='Capacity Estimator'!K39 -> 1 | I2: ='Capacity Estimator'!Q39 -> 1.5 | J2: ='Capacity Estimator'!N39 -> 5 | K2: =8*A5 -> 28.8 | L2: =(8*B5) -> 16 | M2: =(8*D5) -> 5.4687472 | N2: =L2+(K2*0) -> 16 | O2: =8*C5 -> 0.03906248 | P2: =E5 -> 0.02441405 | Q2: =MIN('Capacity Estimator'!D33, 'Capacity Estimator'!D35) -> 1000 | R2: =MIN('Capacity Estimator'!D33, 'Capacity Estimator'!D35) -> 1000 | S2: ='Capacity Estimator'!D35 -> 1000 | T2: ='Capacity Estimator'!D41/100 -> 0.0075 | U2: 1 | V2: 1 | W2: ='Capacity Estimator'!D25 -> 0.5 | X2: ='Capacity Estimator'!D27 -> 0.1 | Y2: ='Capacity Estimator'!D45 -> 0.0165 | Z2: ='Capacity Estimator'!D47 -> 0.0023 | AA2: ='Capacity Estimator'!D49 -> 0.002 | AB2: 0 | AC2: 0 | AD2: 0 | AG2: =AC3 -> 0.0165 | AJ2: =AC3 -> 0.0165 | AK2: =$AB2*$L$2/$Q$2/$V$2 -> 0 | AM2: =AG2+AK2 -> 0.0165 | AP2: 0.05 | AR2: 0 | AT2: 0 | AX2: =AC3 -> 0.0165 | AY2: =$AB2*$L$2/$Q$2/$V$2 -> 0 | BB2: =(BB3+BC6)*0 -> 0
A3: ='Capacity Estimator'!M41 -> MB | B3: ='Capacity Estimator'!M35 -> MB | C3: ='Capacity Estimator'!P35 -> KB | D3: ='Capacity Estimator'!M37 -> KB | E3: ='Capacity Estimator'!S37 -> KB | F3: ='Capacity Estimator'!P37 -> KB | H3: ='Capacity Estimator'!M39 -> MB | I3: ='Capacity Estimator'!S39 -> MB | J3: ='Capacity Estimator'!P39 -> KB | Y3: 0 | Z3: 0 | AA3: 0 | AB3: =AB2+1 -> 1 | AC3: =IF($AB3<$Y$4,$Y$2,IF($Y$2-(AB3*$Y$3)>0,$Y$2-(AB3*$Y$3),0)) -> 0.0165 | AD3: =IF($AB3<$AA$4,$AA$2,IF($AA$2-($AB3*$AA$3)>0,$AA$2-($AB3*$AA$3),0)) -> 0.002 | AF3: =$AC3+(($AB3*$W$2)*$K$2/($Q$2*$T$2)) -> 1.9365 | AG3: =AG2-AF3 -> -1.92 | AI3: =$AC3+(($AB3*$W$2)*$L$2/($Q$2*$T$2)) -> 1.083166667 | AJ3: =AJ2-AI3 -> -1.066666667 | AK3: =$AD3+(($AB3*$W$2)*$L$2/($S$2*$T$2)*$U$2) -> 1.068666667 | AL3: =AK2-AK3 -> -1.068666667 | AM3: =AF3+AK3 -> 3.005166667 | AN3: =AM2-AM3 -> -2.988666667 | AP3: =$AC3+(($AB3*$X$2)*($O$2/($R$2*$T$2))) -> 0.01702083307 | AQ3: =AP2-AP3 -> 0.03297916693 | AR3: =$AD3+(($AB3*$X$2)*$O$2/($S$2*$T$2)*$V$2) -> 0.002520833067 | AS3: =AR2-AR3 -> -0.002520833067 | AT3: =AD3 -> 0.002 | AU3: =AT2-AT3 -> -0.002 | AW3: =$AC3+(($AB3*$W$2)*$M$2/($Q$2*$T$2)) -> 0.3810831467 | AX3: =AX2-AW3 -> -0.3645831467 | AY3: =$AD3+(($AB3*$W$2)*$M$2/($S$2*$T$2)*$U$2) -> 0.3665831467 | AZ3: =AY2-AY3 -> -0.3665831467 | BB3: =$AC3+(($AB3*$X$2)*(($O$2+$P$2)/($R$2*$T$2)))+($G$2*1) -> 0.2923463537 | BC3: =BB2-BB3 -> -0.2923463537
U4: 0.4 | V4: 0.4 | Y4: 0 | Z4: 0 | AA4: 0 | AB4: 2 | AC4: =IF($AB4<$Y$4,$Y$2,(IF(($AC3-$Y$3)>0,$AC3-$Y$3,0))) -> 0.0165 | AD4: =IF($AB4<$AA$4,$AA$2,(IF(($AD3-$AA$3)>0,$AD3-$AA$3,0))) -> 0.002 | AF4: =$AC4+(($AB4*$W$2)*$K$2/($Q$2*$T$2)) -> 3.8565 | AG4: =AF3-AF4 -> -1.92 | AI4: =$AC4+(($AB4*$W$2)*$L$2/($Q$2*$T$2)) -> 2.149833333 | AJ4: =AI3-AI4 -> -1.066666667 | AK4: 2.135333333 | AL4: =AK3-AK4 -> -1.066666667 | AM4: 5.991833333 | AN4: =AM3-AM4 -> -2.986666667 | AP4: =$AC4+(($AB4*$X$2)*($O$2/($R$2*$T$2))) -> 0.01754166613 | AQ4: =AP3-AP4 -> -0.0005208330667 | AR4: 0.003041666133 | AS4: =AR3-AR4 -> -0.0005208330667 | AT4: =AD4 -> 0.002 | AU4: =AT3-AT4 -> 0 | AW4: =$AC4+(($AB4*$W$2)*$M$2/($Q$2*$T$2)) -> 0.7456662933 | AX4: =AW3-AW4 -> -0.3645831467 | AY4: =$AD4+(($AB4*$W$2)*$M$2/($S$2*$T$2)*$U$2) -> 0.7311662933 | AZ4: =AY3-AY4 -> -0.3645831467 | BB4: =$AC4+(($AB4*$X$2)*(($O$2+$P$2)/($R$2*$T$2)))+($G$2*1) -> 0.2931927075 | BC4: =BB3-BB4 -> -0.0008463537333
A5: =IF(A3="MB",A2,IF(A3="GB",A2*1024,A2*0.000976562)) -> 3.6 | B5: 2 | C5: 0.00488281 | D5: 0.6835934 | E5: 0.02441405 | F5: 0.00488281 | H5: =IF(H3="MB",H2,IF(H3="GB",H2*1024,H2*0.000976562)) -> 1 | I5: =IF(I3="MB",I2,IF(I3="GB",I2*1024,I2*0.000976562)) -> 1.5 | J5: =IF(J3="MB",J2,IF(J3="GB",J2*1024,J2*0.000976562)) -> 0.00488281 | O5: Size to use without Hosting (Download both WBTE Engine & Form from DRC) | AB5: 3 | AC5: =IF($AB5<$Y$4,$Y$2,(IF(($AC4-$Y$3)>0,$AC4-$Y$3,0))) -> 0.0165 | AD5: =IF($AB5<$AA$4,$AA$2,(IF(($AD4-$AA$3)>0,$AD4-$AA$3,0))) -> 0.002 | AF5: =$AC5+(($AB5*$W$2)*$K$2/($Q$2*$T$2)) -> 5.7765 | AG5: -1.92 | AI5: =$AC5+(($AB5*$W$2)*$L$2/($Q$2*$T$2)) -> 3.2165 | AJ5: =AI4-AI5 -> -1.066666667 | AK5: 3.202 | AL5: -1.066666667 | AM5: 8.9785 | AN5: -2.986666667 | AP5: 0.0180624992 | AQ5: =AP4-AP5 -> -0.0005208330667 | AR5: 0.0035624992 | AS5: -0.0005208330667 | AT5: 0.002 | AU5: 0 | AW5: =$AC5+(($AB5*$W$2)*$M$2/($Q$2*$T$2)) -> 1.11024944 | AX5: =AW4-AW5 -> -0.3645831467 | AY5: 1.09574944 | AZ5: =AY4-AY5 -> -0.3645831467 | BB5: 0.2940390612 | BC5: =BB4-BB5 -> -0.0008463537333
A6: MB | B6: MB | C6: MB | D6: MB | E6: MB | F6: MB | H6: MB | I6: MB | J6: MB | N6: Use with Content Hosting for CAT form download from TSM | AB6: 4 | AC6: 0.0165 | AD6: 0.002 | AF6: 7.6965 | AG6: -1.92 | AI6: 4.283166667 | AJ6: -1.066666667 | AK6: 4.268666667 | AL6: -1.066666667 | AM6: 11.96516667 | AN6: -2.986666667 | AP6: 0.01858333227 | AQ6: -0.0005208330667 | AR6: 0.004083332267 | AS6: -0.0005208330667 | AT6: 0.002 | AU6: 0 | AW6: 1.474832587 | AX6: -0.3645831467 | AY6: 1.460332587 | AZ6: -0.3645831467 | BB6: 0.2948854149 | BC6: -0.0008463537333
M7: Use with Content Hosting for Fixed form download from TSM | Y7: =Y2*1000 -> 16.5 | Z7: =Z2*1000 -> 2.3 | AA7: =AA2*1000 -> 2 | AB7: 5 | AC7: 0.0165 | AD7: 0.002 | AF7: 9.6165 | AG7: -1.92 | AI7: 5.349833333 | AJ7: -1.066666667 | AK7: 5.335333333 | AL7: -1.066666667 | AM7: 14.95183333 | AN7: -2.986666667 | AP7: 0.01910416533 | AQ7: -0.0005208330667 | AR7: 0.004604165333 | AS7: -0.0005208330667 | AT7: 0.002 | AU7: 0 | AW7: 1.839415733 | AX7: -0.3645831467 | AY7: 1.824915733 | AZ7: -0.3645831467 | BB7: 0.2957317687 | BC7: -0.0008463537333
L8: Use with Hosting for WBTE Engine download from DRC | Y8: Milliseconds | Z8: Milliseconds | AA8: Milliseconds | AB8: 6 | AC8: 0.0165 | AD8: 0.002 | AF8: 11.5365 | AG8: -1.92 | AI8: 6.4165 | AJ8: -1.066666667 | AK8: 6.402 | AL8: -1.066666667 | AM8: 17.9385 | AN8: -2.986666667 | AP8: 0.0196249984 | AQ8: -0.0005208330667 | AR8: 0.0051249984 | AS8: -0.0005208330667 | AT8: 0.002 | AU8: 0 | AW8: 2.20399888 | AX8: -0.3645831467 | AY8: 2.18949888 | AZ8: -0.3645831467 | BB8: 0.2965781224 | BC8: -0.0008463537333
A9: T1 | B9: 1.544 | C9: Mbits/sec | F9: Mbits/sec | J9: Mbits/sec | AB9: 7 | AC9: 0.0165 | AD9: 0.002 | AF9: 13.4565 | AG9: -1.92 | AI9: 7.483166667 | AJ9: -1.066666667 | AK9: 7.468666667 | AL9: -1.066666667 | AM9: 20.92516667 | AN9: -2.986666667 | AP9: 0.02014583147 | AQ9: -0.0005208330667 | AR9: 0.005645831467 | AS9: -0.0005208330667 | AT9: 0.002 | AU9: 0 | AW9: 2.568582027 | AX9: -0.3645831467 | AY9: 2.554082027 | AZ9: -0.3645831467 | BB9: 0.2974244761 | BC9: -0.0008463537333
A10: T2 | B10: 6.312 | C10: Mbits/sec | F10: Mbits/sec | J10: Mbits/sec | S10: Minimum of upload Speed and LAN Speed | AB10: 8 | AC10: 0.0165 | AD10: 0.002 | AF10: 15.3765 | AG10: -1.92 | AI10: 8.549833333 | AJ10: -1.066666667 | AK10: 8.535333333 | AL10: -1.066666667 | AM10: 23.91183333 | AN10: -2.986666667 | AP10: 0.02066666453 | AQ10: -0.0005208330667 | AR10: =$AD10+(($AB10*$X$2)*$O$2/($S$2*$T$2)*$V$2) -> 0.006166664533 | AS10: -0.0005208330667 | AT10: 0.002 | AU10: 0 | AW10: 2.933165173 | AX10: -0.3645831467 | AY10: 2.918665173 | AZ10: -0.3645831467 | BB10: 0.2982708299 | BC10: -0.0008463537333
A11: T3 | B11: 44.736 | C11: Mbits/sec | F11: Mbits/sec | J11: Mbits/sec | AB11: 9 | AC11: 0.0165 | AD11: 0.002 | AF11: 17.2965 | AG11: -1.92 | AI11: 9.6165 | AJ11: -1.066666667 | AK11: 9.602 | AL11: -1.066666667 | AM11: 26.8985 | AN11: -2.986666667 | AP11: 0.0211874976 | AQ11: -0.0005208330667 | AR11: 0.0066874976 | AS11: -0.0005208330667 | AT11: 0.002 | AU11: 0 | AW11: 3.29774832 | AX11: -0.3645831467 | AY11: 3.28324832 | AZ11: -0.3645831467 | BB11: 0.2991171836 | BC11: -0.0008463537333
R12: Minimum of Download Speed and LAN Speed | AB12: 10 | AC12: 0.0165 | AD12: 0.002 | AF12: 19.2165 | AG12: -1.92 | AI12: 10.68316667 | AJ12: -1.066666667 | AK12: 10.66866667 | AL12: -1.066666667 | AM12: 29.88516667 | AN12: -2.986666667 | AP12: 0.02170833067 | AQ12: -0.0005208330667 | AR12: 0.007208330667 | AS12: -0.0005208330667 | AT12: 0.002 | AU12: 0 | AW12: 3.662331467 | AX12: -0.3645831467 | AY12: 3.647831467 | AZ12: -0.3645831467 | BB12: 0.2999635373 | BC12: -0.0008463537333
AB13: 11 | AC13: 0.0165 | AD13: 0.002 | AF13: 21.1365 | AG13: -1.92 | AI13: 11.74983333 | AJ13: -1.066666667 | AK13: 11.73533333 | AL13: -1.066666667 | AM13: 32.87183333 | AN13: -2.986666667 | AP13: 0.02222916373 | AQ13: -0.0005208330667 | AR13: 0.007729163733 | AS13: -0.0005208330667 | AT13: 0.002 | AU13: 0 | AW13: 4.026914613 | AX13: -0.3645831467 | AY13: 4.012414613 | AZ13: -0.3645831467 | BB13: 0.3008098911 | BC13: -0.0008463537333
AB14: 12 | AC14: 0.0165 | AD14: 0.002 | AF14: 23.0565 | AG14: -1.92 | AI14: 12.8165 | AJ14: -1.066666667 | AK14: 12.802 | AL14: -1.066666667 | AM14: 35.8585 | AN14: -2.986666667 | AP14: 0.0227499968 | AQ14: -0.0005208330667 | AR14: 0.0082499968 | AS14: -0.0005208330667 | AT14: 0.002 | AU14: 0 | AW14: 4.39149776 | AX14: -0.3645831467 | AY14: 4.37699776 | AZ14: -0.3645831467 | BB14: 0.3016562448 | BC14: -0.0008463537333
AB15: 13 | AC15: 0.0165 | AD15: 0.002 | AF15: 24.9765 | AG15: -1.92 | AI15: 13.88316667 | AJ15: -1.066666667 | AK15: 13.86866667 | AL15: -1.066666667 | AM15: 38.84516667 | AN15: -2.986666667 | AP15: 0.02327082987 | AQ15: -0.0005208330667 | AR15: 0.008770829867 | AS15: -0.0005208330667 | AT15: 0.002 | AU15: 0 | AW15: 4.756080907 | AX15: -0.3645831467 | AY15: 4.741580907 | AZ15: -0.3645831467 | BB15: 0.3025025985 | BC15: -0.0008463537333
AB16: 14 | AC16: 0.0165 | AD16: 0.002 | AF16: 26.8965 | AG16: -1.92 | AI16: 14.94983333 | AJ16: -1.066666667 | AK16: 14.93533333 | AL16: -1.066666667 | AM16: 41.83183333 | AN16: -2.986666667 | AP16: 0.02379166293 | AQ16: -0.0005208330667 | AR16: 0.009291662933 | AS16: -0.0005208330667 | AT16: 0.002 | AU16: 0 | AW16: 5.120664053 | AX16: -0.3645831467 | AY16: 5.106164053 | AZ16: -0.3645831467 | BB16: 0.3033489523 | BC16: -0.0008463537333
AB17: 15 | AC17: 0.0165 | AD17: 0.002 | AF17: 28.8165 | AG17: -1.92 | AI17: 16.0165 | AJ17: -1.066666667 | AK17: 16.002 | AL17: -1.066666667 | AM17: 44.8185 | AN17: -2.986666667 | AP17: 0.024312496 | AQ17: -0.0005208330667 | AR17: 0.009812496 | AS17: -0.0005208330667 | AT17: 0.002 | AU17: 0 | AW17: 5.4852472 | AX17: -0.3645831467 | AY17: 5.4707472 | AZ17: -0.3645831467 | BB17: 0.304195306 | BC17: -0.0008463537333
AB18: 16 | AC18: 0.0165 | AD18: 0.002 | AF18: 30.7365 | AG18: -1.92 | AI18: 17.08316667 | AJ18: -1.066666667 | AK18: 17.06866667 | AL18: -1.066666667 | AM18: 47.80516667 | AN18: -2.986666667 | AP18: 0.02483332907 | AQ18: -0.0005208330667 | AR18: 0.01033332907 | AS18: -0.0005208330667 | AT18: 0.002 | AU18: 0 | AW18: 5.849830347 | AX18: -0.3645831467 | AY18: 5.835330347 | AZ18: -0.3645831467 | BB18: 0.3050416597 | BC18: -0.0008463537333
AB19: 17 | AC19: 0.0165 | AD19: 0.002 | AF19: 32.6565 | AG19: -1.92 | AI19: 18.14983333 | AJ19: -1.066666667 | AK19: 18.13533333 | AL19: -1.066666667 | AM19: 50.79183333 | AN19: -2.986666667 | AP19: 0.02535416213 | AQ19: -0.0005208330667 | AR19: 0.01085416213 | AS19: -0.0005208330667 | AT19: 0.002 | AU19: 0 | AW19: 6.214413493 | AX19: -0.3645831467 | AY19: 6.199913493 | AZ19: -0.3645831467 | BB19: 0.3058880135 | BC19: -0.0008463537333
AB20: 18 | AC20: 0.0165 | AD20: 0.002 | AF20: 34.5765 | AG20: -1.92 | AI20: 19.2165 | AJ20: -1.066666667 | AK20: 19.202 | AL20: -1.066666667 | AM20: 53.7785 | AN20: -2.986666667 | AP20: 0.0258749952 | AQ20: -0.0005208330667 | AR20: 0.0113749952 | AS20: -0.0005208330667 | AT20: 0.002 | AU20: 0 | AW20: 6.57899664 | AX20: -0.3645831467 | AY20: 6.56449664 | AZ20: -0.3645831467 | BB20: 0.3067343672 | BC20: -0.0008463537333
AB21: 19 | AC21: 0.0165 | AD21: 0.002 | AF21: 36.4965 | AG21: -1.92 | AI21: 20.28316667 | AJ21: -1.066666667 | AK21: 20.26866667 | AL21: -1.066666667 | AM21: 56.76516667 | AN21: -2.986666667 | AP21: 0.02639582827 | AQ21: -0.0005208330667 | AR21: 0.01189582827 | AS21: -0.0005208330667 | AT21: 0.002 | AU21: 0 | AW21: 6.943579787 | AX21: -0.3645831467 | AY21: 6.929079787 | AZ21: -0.3645831467 | BB21: 0.3075807209 | BC21: -0.0008463537333
AB22: 20 | AC22: 0.0165 | AD22: 0.002 | AF22: 38.4165 | AG22: -1.92 | AI22: 21.34983333 | AJ22: -1.066666667 | AK22: 21.33533333 | AL22: -1.066666667 | AM22: 59.75183333 | AN22: -2.986666667 | AP22: 0.02691666133 | AQ22: -0.0005208330667 | AR22: 0.01241666133 | AS22: -0.0005208330667 | AT22: 0.002 | AU22: 0 | AW22: 7.308162933 | AX22: -0.3645831467 | AY22: 7.293662933 | AZ22: -0.3645831467 | BB22: 0.3084270747 | BC22: -0.0008463537333
AB23: 21 | AC23: 0.0165 | AD23: 0.002 | AF23: 40.3365 | AG23: -1.92 | AI23: 22.4165 | AJ23: -1.066666667 | AK23: 22.402 | AL23: -1.066666667 | AM23: 62.7385 | AN23: -2.986666667 | AP23: 0.0274374944 | AQ23: -0.0005208330667 | AR23: 0.0129374944 | AS23: -0.0005208330667 | AT23: 0.002 | AU23: 0 | AW23: 7.67274608 | AX23: -0.3645831467 | AY23: 7.65824608 | AZ23: -0.3645831467 | BB23: 0.3092734284 | BC23: -0.0008463537333
AB24: 22 | AC24: 0.0165 | AD24: 0.002 | AF24: 42.2565 | AG24: -1.92 | AI24: 23.48316667 | AJ24: -1.066666667 | AK24: 23.46866667 | AL24: -1.066666667 | AM24: 65.72516667 | AN24: -2.986666667 | AP24: 0.02795832747 | AQ24: -0.0005208330667 | AR24: 0.01345832747 | AS24: -0.0005208330667 | AT24: 0.002 | AU24: 0 | AW24: 8.037329227 | AX24: -0.3645831467 | AY24: 8.022829227 | AZ24: -0.3645831467 | BB24: 0.3101197821 | BC24: -0.0008463537333
AB25: 23 | AC25: 0.0165 | AD25: 0.002 | AF25: 44.1765 | AG25: -1.92 | AI25: 24.54983333 | AJ25: -1.066666667 | AK25: 24.53533333 | AL25: -1.066666667 | AM25: 68.71183333 | AN25: -2.986666667 | AP25: 0.02847916053 | AQ25: -0.0005208330667 | AR25: 0.01397916053 | AS25: -0.0005208330667 | AT25: 0.002 | AU25: 0 | AW25: 8.401912373 | AX25: -0.3645831467 | AY25: 8.387412373 | AZ25: -0.3645831467 | BB25: 0.3109661359 | BC25: -0.0008463537333
AB26: 24 | AC26: 0.0165 | AD26: 0.002 | AF26: 46.0965 | AG26: -1.92 | AI26: 25.6165 | AJ26: -1.066666667 | AK26: 25.602 | AL26: -1.066666667 | AM26: 71.6985 | AN26: -2.986666667 | AP26: 0.0289999936 | AQ26: -0.0005208330667 | AR26: 0.0144999936 | AS26: -0.0005208330667 | AT26: 0.002 | AU26: 0 | AW26: 8.76649552 | AX26: -0.3645831467 | AY26: 8.75199552 | AZ26: -0.3645831467 | BB26: 0.3118124896 | BC26: -0.0008463537333
AB27: 25 | AC27: 0.0165 | AD27: 0.002 | AF27: 48.0165 | AG27: -1.92 | AI27: 26.68316667 | AJ27: -1.066666667 | AK27: 26.66866667 | AL27: -1.066666667 | AM27: 74.68516667 | AN27: -2.986666667 | AP27: 0.02952082667 | AQ27: -0.0005208330667 | AR27: 0.01502082667 | AS27: -0.0005208330667 | AT27: 0.002 | AU27: 0 | AW27: 9.131078667 | AX27: -0.3645831467 | AY27: 9.116578667 | AZ27: -0.3645831467 | BB27: 0.3126588433 | BC27: -0.0008463537333
AB28: 26 | AC28: 0.0165 | AD28: 0.002 | AF28: 49.9365 | AG28: -1.92 | AI28: 27.74983333 | AJ28: -1.066666667 | AK28: 27.73533333 | AL28: -1.066666667 | AM28: 77.67183333 | AN28: -2.986666667 | AP28: 0.03004165973 | AQ28: -0.0005208330667 | AR28: 0.01554165973 | AS28: -0.0005208330667 | AT28: 0.002 | AU28: 0 | AW28: 9.495661813 | AX28: -0.3645831467 | AY28: 9.481161813 | AZ28: -0.3645831467 | BB28: 0.3135051971 | BC28: -0.0008463537333
AB29: 27 | AC29: 0.0165 | AD29: 0.002 | AF29: 51.8565 | AG29: -1.92 | AI29: 28.8165 | AJ29: -1.066666667 | AK29: 28.802 | AL29: -1.066666667 | AM29: 80.6585 | AN29: -2.986666667 | AP29: 0.0305624928 | AQ29: -0.0005208330667 | AR29: 0.0160624928 | AS29: -0.0005208330667 | AT29: 0.002 | AU29: 0 | AW29: 9.86024496 | AX29: -0.3645831467 | AY29: 9.84574496 | AZ29: -0.3645831467 | BB29: 0.3143515508 | BC29: -0.0008463537333
AB30: 28 | AC30: 0.0165 | AD30: 0.002 | AF30: 53.7765 | AG30: -1.92 | AI30: 29.88316667 | AJ30: -1.066666667 | AK30: 29.86866667 | AL30: -1.066666667 | AM30: 83.64516667 | AN30: -2.986666667 | AP30: 0.03108332587 | AQ30: -0.0005208330667 | AR30: 0.01658332587 | AS30: -0.0005208330667 | AT30: 0.002 | AU30: 0 | AW30: 10.22482811 | AX30: -0.3645831467 | AY30: 10.21032811 | AZ30: -0.3645831467 | BB30: 0.3151979045 | BC30: -0.0008463537333
AB31: =AB30+1 -> 29 | AC31: =IF($AB31<$Y$4,$Y$2,(IF(($AC30-$Y$3)>0,$AC30-$Y$3,0))) -> 0.0165 | AD31: =IF($AB31<$AA$4,$AA$2,(IF(($AD30-$AA$3)>0,$AD30-$AA$3,0))) -> 0.002 | AF31: 55.6965 | AG31: =AF30-AF31 -> -1.92 | AI31: 30.94983333 | AJ31: =AI30-AI31 -> -1.066666667 | AK31: 30.93533333 | AL31: =AK30-AK31 -> -1.066666667 | AM31: 86.63183333 | AN31: =AM30-AM31 -> -2.986666667 | AP31: 0.03160415893 | AQ31: =AP30-AP31 -> -0.0005208330667 | AR31: 0.01710415893 | AS31: =AR30-AR31 -> -0.0005208330667 | AT31: 0.002 | AU31: =AT30-AT31 -> 0 | AW31: 10.58941125 | AX31: =AW30-AW31 -> -0.3645831467 | AY31: 10.57491125 | AZ31: =AY30-AY31 -> -0.3645831467 | BB31: 0.3160442583 | BC31: =BB30-BB31 -> -0.0008463537333
AB32: 30 | AC32: 0.0165 | AD32: 0.002 | AF32: 57.6165 | AG32: -1.92 | AI32: 32.0165 | AJ32: -1.066666667 | AK32: 32.002 | AL32: -1.066666667 | AM32: 89.6185 | AN32: -2.986666667 | AP32: 0.032124992 | AQ32: -0.0005208330667 | AR32: 0.017624992 | AS32: -0.0005208330667 | AT32: 0.002 | AU32: 0 | AW32: 10.9539944 | AX32: -0.3645831467 | AY32: 10.9394944 | AZ32: -0.3645831467 | BB32: 0.316890612 | BC32: -0.0008463537333
AB33: 31 | AC33: 0.0165 | AD33: 0.002 | AF33: 59.5365 | AG33: -1.92 | AI33: 33.08316667 | AJ33: -1.066666667 | AK33: 33.06866667 | AL33: -1.066666667 | AM33: 92.60516667 | AN33: -2.986666667 | AP33: 0.03264582507 | AQ33: -0.0005208330667 | AR33: 0.01814582507 | AS33: -0.0005208330667 | AT33: 0.002 | AU33: 0 | AW33: 11.31857755 | AX33: -0.3645831467 | AY33: 11.30407755 | AZ33: -0.3645831467 | BB33: 0.3177369657 | BC33: -0.0008463537333
AB34: 32 | AC34: 0.0165 | AD34: 0.002 | AF34: 61.4565 | AG34: -1.92 | AI34: 34.14983333 | AJ34: -1.066666667 | AK34: 34.13533333 | AL34: -1.066666667 | AM34: 95.59183333 | AN34: -2.986666667 | AP34: 0.03316665813 | AQ34: -0.0005208330667 | AR34: 0.01866665813 | AS34: -0.0005208330667 | AT34: 0.002 | AU34: 0 | AW34: 11.68316069 | AX34: -0.3645831467 | AY34: 11.66866069 | AZ34: -0.3645831467 | BB34: 0.3185833195 | BC34: -0.0008463537333
AB35: 33 | AC35: 0.0165 | AD35: 0.002 | AF35: 63.3765 | AG35: -1.92 | AI35: 35.2165 | AJ35: -1.066666667 | AK35: 35.202 | AL35: -1.066666667 | AM35: 98.5785 | AN35: -2.986666667 | AP35: 0.0336874912 | AQ35: -0.0005208330667 | AR35: 0.0191874912 | AS35: -0.0005208330667 | AT35: 0.002 | AU35: 0 | AW35: 12.04774384 | AX35: -0.3645831467 | AY35: 12.03324384 | AZ35: -0.3645831467 | BB35: 0.3194296732 | BC35: -0.0008463537333
AB36: 34 | AC36: 0.0165 | AD36: 0.002 | AF36: 65.2965 | AG36: -1.92 | AI36: 36.28316667 | AJ36: -1.066666667 | AK36: 36.26866667 | AL36: -1.066666667 | AM36: 101.5651667 | AN36: -2.986666667 | AP36: 0.03420832427 | AQ36: -0.0005208330667 | AR36: 0.01970832427 | AS36: -0.0005208330667 | AT36: 0.002 | AU36: 0 | AW36: 12.41232699 | AX36: -0.3645831467 | AY36: 12.39782699 | AZ36: -0.3645831467 | BB36: 0.3202760269 | BC36: -0.0008463537333
AB37: 35 | AC37: 0.0165 | AD37: 0.002 | AF37: 67.2165 | AG37: -1.92 | AI37: 37.34983333 | AJ37: -1.066666667 | AK37: 37.33533333 | AL37: -1.066666667 | AM37: 104.5518333 | AN37: -2.986666667 | AP37: 0.03472915733 | AQ37: -0.0005208330667 | AR37: 0.02022915733 | AS37: -0.0005208330667 | AT37: 0.002 | AU37: 0 | AW37: 12.77691013 | AX37: -0.3645831467 | AY37: 12.76241013 | AZ37: -0.3645831467 | BB37: 0.3211223807 | BC37: -0.0008463537333
AB38: 36 | AC38: 0.0165 | AD38: 0.002 | AF38: 69.1365 | AG38: -1.92 | AI38: 38.4165 | AJ38: -1.066666667 | AK38: 38.402 | AL38: -1.066666667 | AM38: 107.5385 | AN38: -2.986666667 | AP38: 0.0352499904 | AQ38: -0.0005208330667 | AR38: 0.0207499904 | AS38: -0.0005208330667 | AT38: 0.002 | AU38: 0 | AW38: 13.14149328 | AX38: -0.3645831467 | AY38: 13.12699328 | AZ38: -0.3645831467 | BB38: 0.3219687344 | BC38: -0.0008463537333
AB39: 37 | AC39: 0.0165 | AD39: 0.002 | AF39: 71.0565 | AG39: -1.92 | AI39: 39.48316667 | AJ39: -1.066666667 | AK39: 39.46866667 | AL39: -1.066666667 | AM39: 110.5251667 | AN39: -2.986666667 | AP39: 0.03577082347 | AQ39: -0.0005208330667 | AR39: 0.02127082347 | AS39: -0.0005208330667 | AT39: 0.002 | AU39: 0 | AW39: 13.50607643 | AX39: -0.3645831467 | AY39: 13.49157643 | AZ39: -0.3645831467 | BB39: 0.3228150881 | BC39: -0.0008463537333
AB40: 38 | AC40: 0.0165 | AD40: 0.002 | AF40: 72.9765 | AG40: -1.92 | AI40: 40.54983333 | AJ40: -1.066666667 | AK40: 40.53533333 | AL40: -1.066666667 | AM40: 113.5118333 | AN40: -2.986666667 | AP40: 0.03629165653 | AQ40: -0.0005208330667 | AR40: 0.02179165653 | AS40: -0.0005208330667 | AT40: 0.002 | AU40: 0 | AW40: 13.87065957 | AX40: -0.3645831467 | AY40: 13.85615957 | AZ40: -0.3645831467 | BB40: 0.3236614419 | BC40: -0.0008463537333
AB41: 39 | AC41: 0.0165 | AD41: 0.002 | AF41: 74.8965 | AG41: -1.92 | AI41: 41.6165 | AJ41: -1.066666667 | AK41: 41.602 | AL41: -1.066666667 | AM41: 116.4985 | AN41: -2.986666667 | AP41: 0.0368124896 | AQ41: -0.0005208330667 | AR41: 0.0223124896 | AS41: -0.0005208330667 | AT41: 0.002 | AU41: 0 | AW41: 14.23524272 | AX41: -0.3645831467 | AY41: 14.22074272 | AZ41: -0.3645831467 | BB41: 0.3245077956 | BC41: -0.0008463537333
AB42: 40 | AC42: 0.0165 | AD42: 0.002 | AF42: 76.8165 | AG42: -1.92 | AI42: 42.68316667 | AJ42: -1.066666667 | AK42: 42.66866667 | AL42: -1.066666667 | AM42: 119.4851667 | AN42: -2.986666667 | AP42: 0.03733332267 | AQ42: -0.0005208330667 | AR42: 0.02283332267 | AS42: -0.0005208330667 | AT42: 0.002 | AU42: 0 | AW42: 14.59982587 | AX42: -0.3645831467 | AY42: 14.58532587 | AZ42: -0.3645831467 | BB42: 0.3253541493 | BC42: -0.0008463537333
AB43: 41 | AC43: 0.0165 | AD43: 0.002 | AF43: 78.7365 | AG43: -1.92 | AI43: 43.74983333 | AJ43: -1.066666667 | AK43: 43.73533333 | AL43: -1.066666667 | AM43: 122.4718333 | AN43: -2.986666667 | AP43: 0.03785415573 | AQ43: -0.0005208330667 | AR43: 0.02335415573 | AS43: -0.0005208330667 | AT43: 0.002 | AU43: 0 | AW43: 14.96440901 | AX43: -0.3645831467 | AY43: 14.94990901 | AZ43: -0.3645831467 | BB43: 0.3262005031 | BC43: -0.0008463537333
AB44: 42 | AC44: 0.0165 | AD44: 0.002 | AF44: 80.6565 | AG44: -1.92 | AI44: 44.8165 | AJ44: -1.066666667 | AK44: 44.802 | AL44: -1.066666667 | AM44: 125.4585 | AN44: -2.986666667 | AP44: 0.0383749888 | AQ44: -0.0005208330667 | AR44: 0.0238749888 | AS44: -0.0005208330667 | AT44: 0.002 | AU44: 0 | AW44: 15.32899216 | AX44: -0.3645831467 | AY44: 15.31449216 | AZ44: -0.3645831467 | BB44: 0.3270468568 | BC44: -0.0008463537333
AB45: 43 | AC45: 0.0165 | AD45: 0.002 | AF45: 82.5765 | AG45: -1.92 | AI45: 45.88316667 | AJ45: -1.066666667 | AK45: 45.86866667 | AL45: -1.066666667 | AM45: 128.4451667 | AN45: -2.986666667 | AP45: 0.03889582187 | AQ45: -0.0005208330667 | AR45: 0.02439582187 | AS45: -0.0005208330667 | AT45: 0.002 | AU45: 0 | AW45: 15.69357531 | AX45: -0.3645831467 | AY45: 15.67907531 | AZ45: -0.3645831467 | BB45: 0.3278932105 | BC45: -0.0008463537333
AB46: 44 | AC46: 0.0165 | AD46: 0.002 | AF46: 84.4965 | AG46: -1.92 | AI46: 46.94983333 | AJ46: -1.066666667 | AK46: 46.93533333 | AL46: -1.066666667 | AM46: 131.4318333 | AN46: -2.986666667 | AP46: 0.03941665493 | AQ46: -0.0005208330667 | AR46: 0.02491665493 | AS46: -0.0005208330667 | AT46: 0.002 | AU46: 0 | AW46: 16.05815845 | AX46: -0.3645831467 | AY46: 16.04365845 | AZ46: -0.3645831467 | BB46: 0.3287395643 | BC46: -0.0008463537333
AB47: 45 | AC47: 0.0165 | AD47: 0.002 | AF47: 86.4165 | AG47: -1.92 | AI47: 48.0165 | AJ47: -1.066666667 | AK47: 48.002 | AL47: -1.066666667 | AM47: 134.4185 | AN47: -2.986666667 | AP47: 0.039937488 | AQ47: -0.0005208330667 | AR47: 0.025437488 | AS47: -0.0005208330667 | AT47: 0.002 | AU47: 0 | AW47: 16.4227416 | AX47: -0.3645831467 | AY47: 16.4082416 | AZ47: -0.3645831467 | BB47: 0.329585918 | BC47: -0.0008463537333
AB48: 46 | AC48: 0.0165 | AD48: 0.002 | AF48: 88.3365 | AG48: -1.92 | AI48: 49.08316667 | AJ48: -1.066666667 | AK48: 49.06866667 | AL48: -1.066666667 | AM48: 137.4051667 | AN48: -2.986666667 | AP48: 0.04045832107 | AQ48: -0.0005208330667 | AR48: 0.02595832107 | AS48: -0.0005208330667 | AT48: 0.002 | AU48: 0 | AW48: 16.78732475 | AX48: -0.3645831467 | AY48: 16.77282475 | AZ48: -0.3645831467 | BB48: 0.3304322717 | BC48: -0.0008463537333
AB49: 47 | AC49: 0.0165 | AD49: 0.002 | AF49: 90.2565 | AG49: -1.92 | AI49: 50.14983333 | AJ49: -1.066666667 | AK49: 50.13533333 | AL49: -1.066666667 | AM49: 140.3918333 | AN49: -2.986666667 | AP49: 0.04097915413 | AQ49: -0.0005208330667 | AR49: 0.02647915413 | AS49: -0.0005208330667 | AT49: 0.002 | AU49: 0 | AW49: 17.15190789 | AX49: -0.3645831467 | AY49: 17.13740789 | AZ49: -0.3645831467 | BB49: 0.3312786255 | BC49: -0.0008463537333
AB50: 48 | AC50: 0.0165 | AD50: 0.002 | AF50: 92.1765 | AG50: -1.92 | AI50: 51.2165 | AJ50: -1.066666667 | AK50: 51.202 | AL50: -1.066666667 | AM50: 143.3785 | AN50: -2.986666667 | AP50: 0.0414999872 | AQ50: -0.0005208330667 | AR50: 0.0269999872 | AS50: -0.0005208330667 | AT50: 0.002 | AU50: 0 | AW50: 17.51649104 | AX50: -0.3645831467 | AY50: 17.50199104 | AZ50: -0.3645831467 | BB50: 0.3321249792 | BC50: -0.0008463537333
AB51: 49 | AC51: 0.0165 | AD51: 0.002 | AF51: 94.0965 | AG51: -1.92 | AI51: 52.28316667 | AJ51: -1.066666667 | AK51: 52.26866667 | AL51: -1.066666667 | AM51: 146.3651667 | AN51: -2.986666667 | AP51: 0.04202082027 | AQ51: -0.0005208330667 | AR51: 0.02752082027 | AS51: -0.0005208330667 | AT51: 0.002 | AU51: 0 | AW51: 17.88107419 | AX51: -0.3645831467 | AY51: 17.86657419 | AZ51: -0.3645831467 | BB51: 0.3329713329 | BC51: -0.0008463537333
AB52: 50 | AC52: 0.0165 | AD52: 0.002 | AF52: 96.0165 | AG52: -1.92 | AI52: 53.34983333 | AJ52: -1.066666667 | AK52: 53.33533333 | AL52: -1.066666667 | AM52: 149.3518333 | AN52: -2.986666667 | AP52: 0.04254165333 | AQ52: -0.0005208330667 | AR52: 0.02804165333 | AS52: -0.0005208330667 | AT52: 0.002 | AU52: 0 | AW52: 18.24565733 | AX52: -0.3645831467 | AY52: 18.23115733 | AZ52: -0.3645831467 | BB52: 0.3338176867 | BC52: -0.0008463537333
AB53: 51 | AC53: 0.0165 | AD53: 0.002 | AF53: 97.9365 | AG53: -1.92 | AI53: 54.4165 | AJ53: -1.066666667 | AK53: 54.402 | AL53: -1.066666667 | AM53: 152.3385 | AN53: -2.986666667 | AP53: 0.0430624864 | AQ53: -0.0005208330667 | AR53: 0.0285624864 | AS53: -0.0005208330667 | AT53: 0.002 | AU53: 0 | AW53: 18.61024048 | AX53: -0.3645831467 | AY53: 18.59574048 | AZ53: -0.3645831467 | BB53: 0.3346640404 | BC53: -0.0008463537333
AB54: 52 | AC54: 0.0165 | AD54: 0.002 | AF54: 99.8565 | AG54: -1.92 | AI54: 55.48316667 | AJ54: -1.066666667 | AK54: 55.46866667 | AL54: -1.066666667 | AM54: 155.3251667 | AN54: -2.986666667 | AP54: 0.04358331947 | AQ54: -0.0005208330667 | AR54: 0.02908331947 | AS54: -0.0005208330667 | AT54: 0.002 | AU54: 0 | AW54: 18.97482363 | AX54: -0.3645831467 | AY54: 18.96032363 | AZ54: -0.3645831467 | BB54: 0.3355103941 | BC54: -0.0008463537333
AB55: 53 | AC55: 0.0165 | AD55: 0.002 | AF55: 101.7765 | AG55: -1.92 | AI55: 56.54983333 | AJ55: -1.066666667 | AK55: 56.53533333 | AL55: -1.066666667 | AM55: 158.3118333 | AN55: -2.986666667 | AP55: 0.04410415253 | AQ55: -0.0005208330667 | AR55: 0.02960415253 | AS55: -0.0005208330667 | AT55: 0.002 | AU55: 0 | AW55: 19.33940677 | AX55: -0.3645831467 | AY55: 19.32490677 | AZ55: -0.3645831467 | BB55: 0.3363567479 | BC55: -0.0008463537333
AB56: 54 | AC56: 0.0165 | AD56: 0.002 | AF56: 103.6965 | AG56: -1.92 | AI56: 57.6165 | AJ56: -1.066666667 | AK56: 57.602 | AL56: -1.066666667 | AM56: 161.2985 | AN56: -2.986666667 | AP56: 0.0446249856 | AQ56: -0.0005208330667 | AR56: 0.0301249856 | AS56: -0.0005208330667 | AT56: 0.002 | AU56: 0 | AW56: 19.70398992 | AX56: -0.3645831467 | AY56: 19.68948992 | AZ56: -0.3645831467 | BB56: 0.3372031016 | BC56: -0.0008463537333
AB57: 55 | AC57: 0.0165 | AD57: 0.002 | AF57: 105.6165 | AG57: -1.92 | AI57: 58.68316667 | AJ57: -1.066666667 | AK57: 58.66866667 | AL57: -1.066666667 | AM57: 164.2851667 | AN57: -2.986666667 | AP57: 0.04514581867 | AQ57: -0.0005208330667 | AR57: 0.03064581867 | AS57: -0.0005208330667 | AT57: 0.002 | AU57: 0 | AW57: 20.06857307 | AX57: -0.3645831467 | AY57: 20.05407307 | AZ57: -0.3645831467 | BB57: 0.3380494553 | BC57: -0.0008463537333
AB58: =AB57+1 -> 56 | AC58: =IF($AB58<$Y$4,$Y$2,(IF(($AC57-$Y$3)>0,$AC57-$Y$3,0))) -> 0.0165 | AD58: =IF($AB58<$AA$4,$AA$2,(IF(($AD57-$AA$3)>0,$AD57-$AA$3,0))) -> 0.002 | AF58: 107.5365 | AG58: =AF57-AF58 -> -1.92 | AI58: 59.74983333 | AJ58: =AI57-AI58 -> -1.066666667 | AK58: 59.73533333 | AL58: =AK57-AK58 -> -1.066666667 | AM58: 167.2718333 | AN58: =AM57-AM58 -> -2.986666667 | AP58: 0.04566665173 | AQ58: =AP57-AP58 -> -0.0005208330667 | AR58: 0.03116665173 | AS58: =AR57-AR58 -> -0.0005208330667 | AT58: 0.002 | AU58: =AT57-AT58 -> 0 | AW58: 20.43315621 | AX58: =AW57-AW58 -> -0.3645831467 | AY58: 20.41865621 | AZ58: =AY57-AY58 -> -0.3645831467 | BB58: 0.3388958091 | BC58: =BB57-BB58 -> -0.0008463537333
AB59: 57 | AC59: 0.0165 | AD59: 0.002 | AF59: 109.4565 | AG59: -1.92 | AI59: 60.8165 | AJ59: -1.066666667 | AK59: 60.802 | AL59: -1.066666667 | AM59: 170.2585 | AN59: -2.986666667 | AP59: 0.0461874848 | AQ59: -0.0005208330667 | AR59: 0.0316874848 | AS59: -0.0005208330667 | AT59: 0.002 | AU59: 0 | AW59: 20.79773936 | AX59: -0.3645831467 | AY59: 20.78323936 | AZ59: -0.3645831467 | BB59: 0.3397421628 | BC59: -0.0008463537333
AB60: 58 | AC60: 0.0165 | AD60: 0.002 | AF60: 111.3765 | AG60: -1.92 | AI60: 61.88316667 | AJ60: -1.066666667 | AK60: 61.86866667 | AL60: -1.066666667 | AM60: 173.2451667 | AN60: -2.986666667 | AP60: 0.04670831787 | AQ60: -0.0005208330667 | AR60: 0.03220831787 | AS60: -0.0005208330667 | AT60: 0.002 | AU60: 0 | AW60: 21.16232251 | AX60: -0.3645831467 | AY60: 21.14782251 | AZ60: -0.3645831467 | BB60: 0.3405885165 | BC60: -0.0008463537333
AB61: 59 | AC61: 0.0165 | AD61: 0.002 | AF61: 113.2965 | AG61: -1.92 | AI61: 62.94983333 | AJ61: -1.066666667 | AK61: 62.93533333 | AL61: -1.066666667 | AM61: 176.2318333 | AN61: -2.986666667 | AP61: 0.04722915093 | AQ61: -0.0005208330667 | AR61: 0.03272915093 | AS61: -0.0005208330667 | AT61: 0.002 | AU61: 0 | AW61: 21.52690565 | AX61: -0.3645831467 | AY61: 21.51240565 | AZ61: -0.3645831467 | BB61: 0.3414348703 | BC61: -0.0008463537333
AB62: 60 | AC62: 0.0165 | AD62: 0.002 | AF62: 115.2165 | AG62: -1.92 | AI62: 64.0165 | AJ62: -1.066666667 | AK62: 64.002 | AL62: -1.066666667 | AM62: 179.2185 | AN62: -2.986666667 | AP62: 0.047749984 | AQ62: -0.0005208330667 | AR62: 0.033249984 | AS62: -0.0005208330667 | AT62: 0.002 | AU62: 0 | AW62: 21.8914888 | AX62: -0.3645831467 | AY62: 21.8769888 | AZ62: -0.3645831467 | BB62: 0.342281224 | BC62: -0.0008463537333
AB63: =AB62+1 -> 61 | AC63: =IF($AB63<$Y$4,$Y$2,(IF(($AC62-$Y$3)>0,$AC62-$Y$3,0))) -> 0.0165 | AD63: =IF($AB63<$AA$4,$AA$2,(IF(($AD62-$AA$3)>0,$AD62-$AA$3,0))) -> 0.002 | AF63: 117.1365 | AG63: =AF62-AF63 -> -1.92 | AI63: 65.08316667 | AJ63: =AI62-AI63 -> -1.066666667 | AK63: 65.06866667 | AL63: =AK62-AK63 -> -1.066666667 | AM63: 182.2051667 | AN63: =AM62-AM63 -> -2.986666667 | AP63: 0.04827081707 | AQ63: =AP62-AP63 -> -0.0005208330667 | AR63: 0.03377081707 | AS63: =AR62-AR63 -> -0.0005208330667 | AT63: 0.002 | AU63: =AT62-AT63 -> 0 | AW63: 22.25607195 | AX63: =AW62-AW63 -> -0.3645831467 | AY63: 22.24157195 | AZ63: =AY62-AY63 -> -0.3645831467 | BB63: 0.3431275777 | BC63: =BB62-BB63 -> -0.0008463537333
AB64: 62 | AC64: 0.0165 | AD64: 0.002 | AF64: 119.0565 | AG64: -1.92 | AI64: 66.14983333 | AJ64: -1.066666667 | AK64: 66.13533333 | AL64: -1.066666667 | AM64: 185.1918333 | AN64: -2.986666667 | AP64: 0.04879165013 | AQ64: -0.0005208330667 | AR64: 0.03429165013 | AS64: -0.0005208330667 | AT64: 0.002 | AU64: 0 | AW64: 22.62065509 | AX64: -0.3645831467 | AY64: 22.60615509 | AZ64: -0.3645831467 | BB64: 0.3439739315 | BC64: -0.0008463537333
AB65: 63 | AC65: 0.0165 | AD65: 0.002 | AF65: 120.9765 | AG65: -1.92 | AI65: 67.2165 | AJ65: -1.066666667 | AK65: 67.202 | AL65: -1.066666667 | AM65: 188.1785 | AN65: -2.986666667 | AP65: 0.0493124832 | AQ65: -0.0005208330667 | AR65: 0.0348124832 | AS65: -0.0005208330667 | AT65: 0.002 | AU65: 0 | AW65: 22.98523824 | AX65: -0.3645831467 | AY65: 22.97073824 | AZ65: -0.3645831467 | BB65: 0.3448202852 | BC65: -0.0008463537333
AB66: 64 | AC66: 0.0165 | AD66: 0.002 | AF66: 122.8965 | AG66: -1.92 | AI66: 68.28316667 | AJ66: -1.066666667 | AK66: 68.26866667 | AL66: -1.066666667 | AM66: =AF66+AK66 -> 191.1651667 | AN66: -2.986666667 | AP66: 0.04983331627 | AQ66: -0.0005208330667 | AR66: 0.03533331627 | AS66: -0.0005208330667 | AT66: 0.002 | AU66: 0 | AW66: 23.34982139 | AX66: -0.3645831467 | AY66: 23.33532139 | AZ66: -0.3645831467 | BB66: 0.3456666389 | BC66: -0.0008463537333
AB67: =AB66+1 -> 65 | AC67: 0.0165 | AD67: 0.002 | AF67: 124.8165 | AG67: =AF66-AF67 -> -1.92 | AI67: 69.34983333 | AJ67: -1.066666667 | AK67: 69.33533333 | AL67: -1.066666667 | AM67: 194.1518333 | AN67: -2.986666667 | AP67: 0.05035414933 | AQ67: -0.0005208330667 | AR67: 0.03585414933 | AS67: -0.0005208330667 | AT67: 0.002 | AU67: 0 | AW67: 23.71440453 | AX67: -0.3645831467 | AY67: 23.69990453 | AZ67: -0.3645831467 | BB67: 0.3465129927 | BC67: -0.0008463537333
AB68: 66 | AC68: 0.0165 | AD68: 0.002 | AF68: 126.7365 | AG68: -1.92 | AI68: 70.4165 | AJ68: =AI67-AI68 -> -1.066666667 | AK68: =$AD68+(($AB68*$W$2)*$L$2/($S$2*$T$2)*$U$2) -> 70.402 | AL68: -1.066666667 | AM68: 197.1385 | AN68: -2.986666667 | AP68: =$AC68+(($AB68*$X$2)*($O$2/($R$2*$T$2))) -> 0.0508749824 | AQ68: -0.0005208330667 | AR68: 0.0363749824 | AS68: -0.0005208330667 | AT68: =AD68 -> 0.002 | AU68: 0 | AW68: 24.07898768 | AX68: -0.3645831467 | AY68: =$AD68+(($AB68*$W$2)*$M$2/($S$2*$T$2)*$U$2) -> 24.06448768 | AZ68: -0.3645831467 | BB68: =$AC68+(($AB68*$X$2)*(($O$2+$P$2)/($R$2*$T$2)))+($G$2*1) -> 0.3473593464 | BC68: -0.0008463537333
AB69: 67 | AC69: =IF($AB69<$Y$4,$Y$2,(IF(($AC68-$Y$3)>0,$AC68-$Y$3,0))) -> 0.0165 | AD69: =IF($AB69<$AA$4,$AA$2,(IF(($AD68-$AA$3)>0,$AD68-$AA$3,0))) -> 0.002 | AF69: =$AC69+(($AB69*$W$2)*$K$2/($Q$2*$T$2)) -> 128.6565 | AG69: -1.92 | AI69: =$AC69+(($AB69*$W$2)*$L$2/($Q$2*$T$2)) -> 71.48316667 | AJ69: =AI68-AI69 -> -1.066666667 | AK69: 71.46866667 | AL69: -1.066666667 | AM69: 200.1251667 | AN69: -2.986666667 | AP69: 0.05139581547 | AQ69: =AP68-AP69 -> -0.0005208330667 | AR69: 0.03689581547 | AS69: -0.0005208330667 | AT69: 0.002 | AU69: 0 | AW69: =$AC69+(($AB69*$W$2)*$M$2/($Q$2*$T$2)) -> 24.44357083 | AX69: =AW68-AW69 -> -0.3645831467 | AY69: 24.42907083 | AZ69: =AY68-AY69 -> -0.3645831467 | BB69: 0.3482057001 | BC69: =BB68-BB69 -> -0.0008463537333
AB70: 68 | AC70: 0.0165 | AD70: 0.002 | AF70: 130.5765 | AG70: -1.92 | AI70: 72.54983333 | AJ70: -1.066666667 | AK70: 72.53533333 | AL70: -1.066666667 | AM70: 203.1118333 | AN70: -2.986666667 | AP70: 0.05191664853 | AQ70: -0.0005208330667 | AR70: 0.03741664853 | AS70: -0.0005208330667 | AT70: 0.002 | AU70: 0 | AW70: 24.80815397 | AX70: -0.3645831467 | AY70: 24.79365397 | AZ70: -0.3645831467 | BB70: 0.3490520539 | BC70: -0.0008463537333
AB71: 69 | AC71: 0.0165 | AD71: 0.002 | AF71: 132.4965 | AG71: -1.92 | AI71: 73.6165 | AJ71: -1.066666667 | AK71: 73.602 | AL71: -1.066666667 | AM71: 206.0985 | AN71: -2.986666667 | AP71: 0.0524374816 | AQ71: -0.0005208330667 | AR71: 0.0379374816 | AS71: -0.0005208330667 | AT71: 0.002 | AU71: 0 | AW71: 25.17273712 | AX71: -0.3645831467 | AY71: 25.15823712 | AZ71: -0.3645831467 | BB71: 0.3498984076 | BC71: -0.0008463537333
AB72: 70 | AC72: 0.0165 | AD72: 0.002 | AF72: 134.4165 | AG72: -1.92 | AI72: 74.68316667 | AJ72: -1.066666667 | AK72: 74.66866667 | AL72: -1.066666667 | AM72: 209.0851667 | AN72: -2.986666667 | AP72: 0.05295831467 | AQ72: -0.0005208330667 | AR72: 0.03845831467 | AS72: -0.0005208330667 | AT72: 0.002 | AU72: 0 | AW72: 25.53732027 | AX72: -0.3645831467 | AY72: 25.52282027 | AZ72: -0.3645831467 | BB72: 0.3507447613 | BC72: -0.0008463537333
AB73: 71 | AC73: 0.0165 | AD73: 0.002 | AF73: 136.3365 | AG73: -1.92 | AI73: 75.74983333 | AJ73: -1.066666667 | AK73: 75.73533333 | AL73: -1.066666667 | AM73: 212.0718333 | AN73: -2.986666667 | AP73: 0.05347914773 | AQ73: -0.0005208330667 | AR73: 0.03897914773 | AS73: -0.0005208330667 | AT73: 0.002 | AU73: 0 | AW73: 25.90190341 | AX73: -0.3645831467 | AY73: 25.88740341 | AZ73: -0.3645831467 | BB73: 0.3515911151 | BC73: -0.0008463537333
AB74: 72 | AC74: 0.0165 | AD74: 0.002 | AF74: 138.2565 | AG74: -1.92 | AI74: 76.8165 | AJ74: -1.066666667 | AK74: 76.802 | AL74: -1.066666667 | AM74: 215.0585 | AN74: -2.986666667 | AP74: 0.0539999808 | AQ74: -0.0005208330667 | AR74: =$AD74+(($AB74*$X$2)*$O$2/($S$2*$T$2)*$V$2) -> 0.0394999808 | AS74: -0.0005208330667 | AT74: 0.002 | AU74: 0 | AW74: 26.26648656 | AX74: -0.3645831467 | AY74: 26.25198656 | AZ74: -0.3645831467 | BB74: 0.3524374688 | BC74: -0.0008463537333
AB75: 73 | AC75: 0.0165 | AD75: 0.002 | AF75: 140.1765 | AG75: -1.92 | AI75: 77.88316667 | AJ75: -1.066666667 | AK75: 77.86866667 | AL75: -1.066666667 | AM75: 218.0451667 | AN75: -2.986666667 | AP75: 0.05452081387 | AQ75: -0.0005208330667 | AR75: 0.04002081387 | AS75: -0.0005208330667 | AT75: 0.002 | AU75: 0 | AW75: 26.63106971 | AX75: -0.3645831467 | AY75: 26.61656971 | AZ75: -0.3645831467 | BB75: 0.3532838225 | BC75: -0.0008463537333
AB76: 74 | AC76: 0.0165 | AD76: 0.002 | AF76: 142.0965 | AG76: -1.92 | AI76: 78.94983333 | AJ76: -1.066666667 | AK76: 78.93533333 | AL76: -1.066666667 | AM76: 221.0318333 | AN76: -2.986666667 | AP76: 0.05504164693 | AQ76: -0.0005208330667 | AR76: 0.04054164693 | AS76: -0.0005208330667 | AT76: 0.002 | AU76: 0 | AW76: 26.99565285 | AX76: -0.3645831467 | AY76: 26.98115285 | AZ76: -0.3645831467 | BB76: 0.3541301763 | BC76: -0.0008463537333
AB77: 75 | AC77: 0.0165 | AD77: 0.002 | AF77: 144.0165 | AG77: -1.92 | AI77: 80.0165 | AJ77: -1.066666667 | AK77: 80.002 | AL77: -1.066666667 | AM77: 224.0185 | AN77: -2.986666667 | AP77: 0.05556248 | AQ77: -0.0005208330667 | AR77: 0.04106248 | AS77: -0.0005208330667 | AT77: 0.002 | AU77: 0 | AW77: 27.360236 | AX77: -0.3645831467 | AY77: 27.345736 | AZ77: -0.3645831467 | BB77: 0.35497653 | BC77: -0.0008463537333
AB78: 76 | AC78: 0.0165 | AD78: 0.002 | AF78: 145.9365 | AG78: -1.92 | AI78: 81.08316667 | AJ78: -1.066666667 | AK78: 81.06866667 | AL78: -1.066666667 | AM78: 227.0051667 | AN78: -2.986666667 | AP78: 0.05608331307 | AQ78: -0.0005208330667 | AR78: 0.04158331307 | AS78: -0.0005208330667 | AT78: 0.002 | AU78: 0 | AW78: 27.72481915 | AX78: -0.3645831467 | AY78: 27.71031915 | AZ78: -0.3645831467 | BB78: 0.3558228837 | BC78: -0.0008463537333
AB79: 77 | AC79: 0.0165 | AD79: 0.002 | AF79: 147.8565 | AG79: -1.92 | AI79: 82.14983333 | AJ79: -1.066666667 | AK79: 82.13533333 | AL79: -1.066666667 | AM79: 229.9918333 | AN79: -2.986666667 | AP79: 0.05660414613 | AQ79: -0.0005208330667 | AR79: 0.04210414613 | AS79: -0.0005208330667 | AT79: 0.002 | AU79: 0 | AW79: 28.08940229 | AX79: -0.3645831467 | AY79: 28.07490229 | AZ79: -0.3645831467 | BB79: 0.3566692375 | BC79: -0.0008463537333
AB80: 78 | AC80: 0.0165 | AD80: 0.002 | AF80: 149.7765 | AG80: -1.92 | AI80: 83.2165 | AJ80: -1.066666667 | AK80: 83.202 | AL80: -1.066666667 | AM80: 232.9785 | AN80: -2.986666667 | AP80: 0.0571249792 | AQ80: -0.0005208330667 | AR80: 0.0426249792 | AS80: -0.0005208330667 | AT80: 0.002 | AU80: 0 | AW80: 28.45398544 | AX80: -0.3645831467 | AY80: 28.43948544 | AZ80: -0.3645831467 | BB80: 0.3575155912 | BC80: -0.0008463537333
AB81: 79 | AC81: 0.0165 | AD81: 0.002 | AF81: 151.6965 | AG81: -1.92 | AI81: 84.28316667 | AJ81: -1.066666667 | AK81: 84.26866667 | AL81: -1.066666667 | AM81: 235.9651667 | AN81: -2.986666667 | AP81: 0.05764581227 | AQ81: -0.0005208330667 | AR81: 0.04314581227 | AS81: -0.0005208330667 | AT81: 0.002 | AU81: 0 | AW81: 28.81856859 | AX81: -0.3645831467 | AY81: 28.80406859 | AZ81: -0.3645831467 | BB81: 0.3583619449 | BC81: -0.0008463537333
AB82: 80 | AC82: 0.0165 | AD82: 0.002 | AF82: 153.6165 | AG82: -1.92 | AI82: 85.34983333 | AJ82: -1.066666667 | AK82: 85.33533333 | AL82: -1.066666667 | AM82: 238.9518333 | AN82: -2.986666667 | AP82: 0.05816664533 | AQ82: -0.0005208330667 | AR82: 0.04366664533 | AS82: -0.0005208330667 | AT82: 0.002 | AU82: 0 | AW82: 29.18315173 | AX82: -0.3645831467 | AY82: 29.16865173 | AZ82: -0.3645831467 | BB82: 0.3592082987 | BC82: -0.0008463537333
AB83: 81 | AC83: 0.0165 | AD83: 0.002 | AF83: 155.5365 | AG83: -1.92 | AI83: 86.4165 | AJ83: -1.066666667 | AK83: 86.402 | AL83: -1.066666667 | AM83: 241.9385 | AN83: -2.986666667 | AP83: 0.0586874784 | AQ83: -0.0005208330667 | AR83: 0.0441874784 | AS83: -0.0005208330667 | AT83: 0.002 | AU83: 0 | AW83: 29.54773488 | AX83: -0.3645831467 | AY83: 29.53323488 | AZ83: -0.3645831467 | BB83: 0.3600546524 | BC83: -0.0008463537333
AB84: 82 | AC84: 0.0165 | AD84: 0.002 | AF84: 157.4565 | AG84: -1.92 | AI84: 87.48316667 | AJ84: -1.066666667 | AK84: 87.46866667 | AL84: -1.066666667 | AM84: 244.9251667 | AN84: -2.986666667 | AP84: 0.05920831147 | AQ84: -0.0005208330667 | AR84: 0.04470831147 | AS84: -0.0005208330667 | AT84: 0.002 | AU84: 0 | AW84: 29.91231803 | AX84: -0.3645831467 | AY84: 29.89781803 | AZ84: -0.3645831467 | BB84: 0.3609010061 | BC84: -0.0008463537333
AB85: 83 | AC85: 0.0165 | AD85: 0.002 | AF85: 159.3765 | AG85: -1.92 | AI85: 88.54983333 | AJ85: -1.066666667 | AK85: 88.53533333 | AL85: -1.066666667 | AM85: 247.9118333 | AN85: -2.986666667 | AP85: 0.05972914453 | AQ85: -0.0005208330667 | AR85: 0.04522914453 | AS85: -0.0005208330667 | AT85: 0.002 | AU85: 0 | AW85: 30.27690117 | AX85: -0.3645831467 | AY85: 30.26240117 | AZ85: -0.3645831467 | BB85: 0.3617473599 | BC85: -0.0008463537333
AB86: 84 | AC86: 0.0165 | AD86: 0.002 | AF86: 161.2965 | AG86: -1.92 | AI86: 89.6165 | AJ86: -1.066666667 | AK86: 89.602 | AL86: -1.066666667 | AM86: 250.8985 | AN86: -2.986666667 | AP86: 0.0602499776 | AQ86: -0.0005208330667 | AR86: 0.0457499776 | AS86: -0.0005208330667 | AT86: 0.002 | AU86: 0 | AW86: 30.64148432 | AX86: -0.3645831467 | AY86: 30.62698432 | AZ86: -0.3645831467 | BB86: 0.3625937136 | BC86: -0.0008463537333
AB87: 85 | AC87: 0.0165 | AD87: 0.002 | AF87: 163.2165 | AG87: -1.92 | AI87: 90.68316667 | AJ87: -1.066666667 | AK87: 90.66866667 | AL87: -1.066666667 | AM87: 253.8851667 | AN87: -2.986666667 | AP87: 0.06077081067 | AQ87: -0.0005208330667 | AR87: 0.04627081067 | AS87: -0.0005208330667 | AT87: 0.002 | AU87: 0 | AW87: 31.00606747 | AX87: -0.3645831467 | AY87: 30.99156747 | AZ87: -0.3645831467 | BB87: 0.3634400673 | BC87: -0.0008463537333
AB88: 86 | AC88: 0.0165 | AD88: 0.002 | AF88: 165.1365 | AG88: -1.92 | AI88: 91.74983333 | AJ88: -1.066666667 | AK88: 91.73533333 | AL88: -1.066666667 | AM88: 256.8718333 | AN88: -2.986666667 | AP88: 0.06129164373 | AQ88: -0.0005208330667 | AR88: 0.04679164373 | AS88: -0.0005208330667 | AT88: 0.002 | AU88: 0 | AW88: 31.37065061 | AX88: -0.3645831467 | AY88: 31.35615061 | AZ88: -0.3645831467 | BB88: 0.3642864211 | BC88: -0.0008463537333
AB89: 87 | AC89: 0.0165 | AD89: 0.002 | AF89: 167.0565 | AG89: -1.92 | AI89: 92.8165 | AJ89: -1.066666667 | AK89: 92.802 | AL89: -1.066666667 | AM89: 259.8585 | AN89: -2.986666667 | AP89: 0.0618124768 | AQ89: -0.0005208330667 | AR89: 0.0473124768 | AS89: -0.0005208330667 | AT89: 0.002 | AU89: 0 | AW89: 31.73523376 | AX89: -0.3645831467 | AY89: 31.72073376 | AZ89: -0.3645831467 | BB89: 0.3651327748 | BC89: -0.0008463537333
AB90: 88 | AC90: 0.0165 | AD90: 0.002 | AF90: 168.9765 | AG90: -1.92 | AI90: 93.88316667 | AJ90: -1.066666667 | AK90: 93.86866667 | AL90: -1.066666667 | AM90: 262.8451667 | AN90: -2.986666667 | AP90: 0.06233330987 | AQ90: -0.0005208330667 | AR90: 0.04783330987 | AS90: -0.0005208330667 | AT90: 0.002 | AU90: 0 | AW90: 32.09981691 | AX90: -0.3645831467 | AY90: 32.08531691 | AZ90: -0.3645831467 | BB90: 0.3659791285 | BC90: -0.0008463537333
AB91: 89 | AC91: 0.0165 | AD91: 0.002 | AF91: 170.8965 | AG91: -1.92 | AI91: 94.94983333 | AJ91: -1.066666667 | AK91: 94.93533333 | AL91: -1.066666667 | AM91: 265.8318333 | AN91: -2.986666667 | AP91: 0.06285414293 | AQ91: -0.0005208330667 | AR91: 0.04835414293 | AS91: -0.0005208330667 | AT91: 0.002 | AU91: 0 | AW91: 32.46440005 | AX91: -0.3645831467 | AY91: 32.44990005 | AZ91: -0.3645831467 | BB91: 0.3668254823 | BC91: -0.0008463537333
AB92: 90 | AC92: 0.0165 | AD92: 0.002 | AF92: 172.8165 | AG92: -1.92 | AI92: 96.0165 | AJ92: -1.066666667 | AK92: 96.002 | AL92: -1.066666667 | AM92: 268.8185 | AN92: -2.986666667 | AP92: 0.063374976 | AQ92: -0.0005208330667 | AR92: 0.048874976 | AS92: -0.0005208330667 | AT92: 0.002 | AU92: 0 | AW92: 32.8289832 | AX92: -0.3645831467 | AY92: 32.8144832 | AZ92: -0.3645831467 | BB92: 0.367671836 | BC92: -0.0008463537333
AB93: 91 | AC93: 0.0165 | AD93: 0.002 | AF93: 174.7365 | AG93: -1.92 | AI93: 97.08316667 | AJ93: -1.066666667 | AK93: 97.06866667 | AL93: -1.066666667 | AM93: 271.8051667 | AN93: -2.986666667 | AP93: 0.06389580907 | AQ93: -0.0005208330667 | AR93: 0.04939580907 | AS93: -0.0005208330667 | AT93: 0.002 | AU93: 0 | AW93: 33.19356635 | AX93: -0.3645831467 | AY93: 33.17906635 | AZ93: -0.3645831467 | BB93: 0.3685181897 | BC93: -0.0008463537333
AB94: 92 | AC94: 0.0165 | AD94: 0.002 | AF94: 176.6565 | AG94: -1.92 | AI94: 98.14983333 | AJ94: -1.066666667 | AK94: 98.13533333 | AL94: -1.066666667 | AM94: 274.7918333 | AN94: -2.986666667 | AP94: 0.06441664213 | AQ94: -0.0005208330667 | AR94: 0.04991664213 | AS94: -0.0005208330667 | AT94: 0.002 | AU94: 0 | AW94: 33.55814949 | AX94: -0.3645831467 | AY94: 33.54364949 | AZ94: -0.3645831467 | BB94: 0.3693645435 | BC94: -0.0008463537333
AB95: 93 | AC95: 0.0165 | AD95: 0.002 | AF95: 178.5765 | AG95: -1.92 | AI95: 99.2165 | AJ95: -1.066666667 | AK95: 99.202 | AL95: -1.066666667 | AM95: 277.7785 | AN95: -2.986666667 | AP95: 0.0649374752 | AQ95: -0.0005208330667 | AR95: 0.0504374752 | AS95: -0.0005208330667 | AT95: 0.002 | AU95: 0 | AW95: 33.92273264 | AX95: -0.3645831467 | AY95: 33.90823264 | AZ95: -0.3645831467 | BB95: 0.3702108972 | BC95: -0.0008463537333
AB96: 94 | AC96: 0.0165 | AD96: 0.002 | AF96: 180.4965 | AG96: -1.92 | AI96: 100.2831667 | AJ96: -1.066666667 | AK96: 100.2686667 | AL96: -1.066666667 | AM96: 280.7651667 | AN96: -2.986666667 | AP96: 0.06545830827 | AQ96: -0.0005208330667 | AR96: 0.05095830827 | AS96: -0.0005208330667 | AT96: 0.002 | AU96: 0 | AW96: 34.28731579 | AX96: -0.3645831467 | AY96: 34.27281579 | AZ96: -0.3645831467 | BB96: 0.3710572509 | BC96: -0.0008463537333
AB97: 95 | AC97: 0.0165 | AD97: 0.002 | AF97: 182.4165 | AG97: -1.92 | AI97: 101.3498333 | AJ97: -1.066666667 | AK97: 101.3353333 | AL97: -1.066666667 | AM97: 283.7518333 | AN97: -2.986666667 | AP97: 0.06597914133 | AQ97: -0.0005208330667 | AR97: 0.05147914133 | AS97: -0.0005208330667 | AT97: 0.002 | AU97: 0 | AW97: 34.65189893 | AX97: -0.3645831467 | AY97: 34.63739893 | AZ97: -0.3645831467 | BB97: 0.3719036047 | BC97: -0.0008463537333
AB98: 96 | AC98: 0.0165 | AD98: 0.002 | AF98: 184.3365 | AG98: -1.92 | AI98: 102.4165 | AJ98: -1.066666667 | AK98: 102.402 | AL98: -1.066666667 | AM98: 286.7385 | AN98: -2.986666667 | AP98: 0.0664999744 | AQ98: -0.0005208330667 | AR98: 0.0519999744 | AS98: -0.0005208330667 | AT98: 0.002 | AU98: 0 | AW98: 35.01648208 | AX98: -0.3645831467 | AY98: 35.00198208 | AZ98: -0.3645831467 | BB98: 0.3727499584 | BC98: -0.0008463537333
AB99: 97 | AC99: 0.0165 | AD99: 0.002 | AF99: 186.2565 | AG99: -1.92 | AI99: 103.4831667 | AJ99: -1.066666667 | AK99: 103.4686667 | AL99: -1.066666667 | AM99: 289.7251667 | AN99: -2.986666667 | AP99: 0.06702080747 | AQ99: -0.0005208330667 | AR99: 0.05252080747 | AS99: -0.0005208330667 | AT99: 0.002 | AU99: 0 | AW99: 35.38106523 | AX99: -0.3645831467 | AY99: 35.36656523 | AZ99: -0.3645831467 | BB99: 0.3735963121 | BC99: -0.0008463537333
AB100: =AB99+1 -> 98 | AC100: 0.0165 | AD100: 0.002 | AF100: 188.1765 | AG100: -1.92 | AI100: 104.5498333 | AJ100: -1.066666667 | AK100: 104.5353333 | AL100: -1.066666667 | AM100: 292.7118333 | AN100: -2.986666667 | AP100: 0.06754164053 | AQ100: -0.0005208330667 | AR100: 0.05304164053 | AS100: -0.0005208330667 | AT100: 0.002 | AU100: 0 | AW100: 35.74564837 | AX100: -0.3645831467 | AY100: 35.73114837 | AZ100: -0.3645831467 | BB100: 0.3744426659 | BC100: -0.0008463537333
AB101: =AB100+1 -> 99 | AC101: 0.0165 | AD101: 0.002 | AF101: 190.0965 | AG101: -1.92 | AI101: 105.6165 | AJ101: -1.066666667 | AK101: 105.602 | AL101: -1.066666667 | AM101: 295.6985 | AN101: -2.986666667 | AP101: 0.0680624736 | AQ101: -0.0005208330667 | AR101: 0.0535624736 | AS101: -0.0005208330667 | AT101: 0.002 | AU101: 0 | AW101: 36.11023152 | AX101: -0.3645831467 | AY101: 36.09573152 | AZ101: -0.3645831467 | BB101: 0.3752890196 | BC101: -0.0008463537333
AB102: =AB101+1 -> 100 | AC102: =IF($AB102<$Y$4,$Y$2,(IF(($AC101-$Y$3)>0,$AC101-$Y$3,0))) -> 0.0165 | AD102: =IF($AB102<$AA$4,$AA$2,(IF(($AD101-$AA$3)>0,$AD101-$AA$3,0))) -> 0.002 | AF102: 192.0165 | AG102: =AF101-AF102 -> -1.92 | AI102: 106.6831667 | AJ102: =AI101-AI102 -> -1.066666667 | AK102: 106.6686667 | AL102: =AK101-AK102 -> -1.066666667 | AM102: 298.6851667 | AN102: =AM101-AM102 -> -2.986666667 | AP102: 0.06858330667 | AQ102: =AP101-AP102 -> -0.0005208330667 | AR102: 0.05408330667 | AS102: =AR101-AR102 -> -0.0005208330667 | AT102: 0.002 | AU102: =AT101-AT102 -> 0 | AW102: 36.47481467 | AX102: =AW101-AW102 -> -0.3645831467 | AY102: 36.46031467 | AZ102: =AY101-AY102 -> -0.3645831467 | BB102: 0.3761353733 | BC102: =BB101-BB102 -> -0.0008463537333
AB103: =AB102+1 -> 101 | AC103: 0.0165 | AD103: 0.002 | AF103: 193.9365 | AG103: -1.92 | AI103: 107.7498333 | AJ103: -1.066666667 | AK103: 107.7353333 | AL103: -1.066666667 | AM103: 301.6718333 | AN103: -2.986666667 | AP103: 0.06910413973 | AQ103: -0.0005208330667 | AR103: 0.05460413973 | AS103: -0.0005208330667 | AT103: 0.002 | AU103: 0 | AW103: 36.83939781 | AX103: -0.3645831467 | AY103: 36.82489781 | AZ103: -0.3645831467 | BB103: 0.3769817271 | BC103: -0.0008463537333
AB104: =AB103+1 -> 102 | AC104: 0.0165 | AD104: 0.002 | AF104: 195.8565 | AG104: -1.92 | AI104: 108.8165 | AJ104: -1.066666667 | AK104: 108.802 | AL104: -1.066666667 | AM104: 304.6585 | AN104: -2.986666667 | AP104: 0.0696249728 | AQ104: -0.0005208330667 | AR104: 0.0551249728 | AS104: -0.0005208330667 | AT104: 0.002 | AU104: 0 | AW104: 37.20398096 | AX104: -0.3645831467 | AY104: 37.18948096 | AZ104: -0.3645831467 | BB104: 0.3778280808 | BC104: -0.0008463537333
AB105: =AB104+1 -> 103 | AC105: 0.0165 | AD105: 0.002 | AF105: 197.7765 | AG105: -1.92 | AI105: 109.8831667 | AJ105: -1.066666667 | AK105: 109.8686667 | AL105: -1.066666667 | AM105: 307.6451667 | AN105: -2.986666667 | AP105: 0.07014580587 | AQ105: -0.0005208330667 | AR105: 0.05564580587 | AS105: -0.0005208330667 | AT105: 0.002 | AU105: 0 | AW105: 37.56856411 | AX105: -0.3645831467 | AY105: 37.55406411 | AZ105: -0.3645831467 | BB105: 0.3786744345 | BC105: -0.0008463537333
AB106: 104 | AC106: 0.0165 | AD106: 0.002 | AF106: 199.6965 | AG106: -1.92 | AI106: 110.9498333 | AJ106: -1.066666667 | AK106: 110.9353333 | AL106: -1.066666667 | AM106: 310.6318333 | AN106: -2.986666667 | AP106: 0.07066663893 | AQ106: -0.0005208330667 | AR106: 0.05616663893 | AS106: -0.0005208330667 | AT106: 0.002 | AU106: 0 | AW106: 37.93314725 | AX106: -0.3645831467 | AY106: 37.91864725 | AZ106: -0.3645831467 | BB106: 0.3795207883 | BC106: -0.0008463537333
AB107: 105 | AC107: 0.0165 | AD107: 0.002 | AF107: 201.6165 | AG107: -1.92 | AI107: 112.0165 | AJ107: -1.066666667 | AK107: 112.002 | AL107: -1.066666667 | AM107: 313.6185 | AN107: -2.986666667 | AP107: 0.071187472 | AQ107: -0.0005208330667 | AR107: 0.056687472 | AS107: -0.0005208330667 | AT107: 0.002 | AU107: 0 | AW107: 38.2977304 | AX107: -0.3645831467 | AY107: 38.2832304 | AZ107: -0.3645831467 | BB107: 0.380367142 | BC107: -0.0008463537333
AB108: 106 | AC108: 0.0165 | AD108: 0.002 | AF108: 203.5365 | AG108: -1.92 | AI108: 113.0831667 | AJ108: -1.066666667 | AK108: 113.0686667 | AL108: -1.066666667 | AM108: 316.6051667 | AN108: -2.986666667 | AP108: 0.07170830507 | AQ108: -0.0005208330667 | AR108: 0.05720830507 | AS108: -0.0005208330667 | AT108: 0.002 | AU108: 0 | AW108: 38.66231355 | AX108: -0.3645831467 | AY108: 38.64781355 | AZ108: -0.3645831467 | BB108: 0.3812134957 | BC108: -0.0008463537333
AB109: 107 | AC109: 0.0165 | AD109: 0.002 | AF109: 205.4565 | AG109: -1.92 | AI109: 114.1498333 | AJ109: -1.066666667 | AK109: 114.1353333 | AL109: -1.066666667 | AM109: 319.5918333 | AN109: -2.986666667 | AP109: 0.07222913813 | AQ109: -0.0005208330667 | AR109: 0.05772913813 | AS109: -0.0005208330667 | AT109: 0.002 | AU109: 0 | AW109: 39.02689669 | AX109: -0.3645831467 | AY109: 39.01239669 | AZ109: -0.3645831467 | BB109: 0.3820598495 | BC109: -0.0008463537333
AB110: 108 | AC110: 0.0165 | AD110: 0.002 | AF110: 207.3765 | AG110: -1.92 | AI110: 115.2165 | AJ110: -1.066666667 | AK110: 115.202 | AL110: -1.066666667 | AM110: 322.5785 | AN110: -2.986666667 | AP110: 0.0727499712 | AQ110: -0.0005208330667 | AR110: 0.0582499712 | AS110: -0.0005208330667 | AT110: 0.002 | AU110: 0 | AW110: 39.39147984 | AX110: -0.3645831467 | AY110: 39.37697984 | AZ110: -0.3645831467 | BB110: 0.3829062032 | BC110: -0.0008463537333
AB111: 109 | AC111: 0.0165 | AD111: 0.002 | AF111: 209.2965 | AG111: -1.92 | AI111: 116.2831667 | AJ111: -1.066666667 | AK111: 116.2686667 | AL111: -1.066666667 | AM111: 325.5651667 | AN111: -2.986666667 | AP111: 0.07327080427 | AQ111: -0.0005208330667 | AR111: 0.05877080427 | AS111: -0.0005208330667 | AT111: 0.002 | AU111: 0 | AW111: 39.75606299 | AX111: -0.3645831467 | AY111: 39.74156299 | AZ111: -0.3645831467 | BB111: 0.3837525569 | BC111: -0.0008463537333
AB112: 110 | AC112: 0.0165 | AD112: 0.002 | AF112: 211.2165 | AG112: -1.92 | AI112: 117.3498333 | AJ112: -1.066666667 | AK112: 117.3353333 | AL112: -1.066666667 | AM112: 328.5518333 | AN112: -2.986666667 | AP112: 0.07379163733 | AQ112: -0.0005208330667 | AR112: 0.05929163733 | AS112: -0.0005208330667 | AT112: 0.002 | AU112: 0 | AW112: 40.12064613 | AX112: -0.3645831467 | AY112: 40.10614613 | AZ112: -0.3645831467 | BB112: 0.3845989107 | BC112: -0.0008463537333
AB113: 111 | AC113: 0.0165 | AD113: 0.002 | AF113: 213.1365 | AG113: -1.92 | AI113: 118.4165 | AJ113: -1.066666667 | AK113: 118.402 | AL113: -1.066666667 | AM113: 331.5385 | AN113: -2.986666667 | AP113: 0.0743124704 | AQ113: -0.0005208330667 | AR113: 0.0598124704 | AS113: -0.0005208330667 | AT113: 0.002 | AU113: 0 | AW113: 40.48522928 | AX113: -0.3645831467 | AY113: 40.47072928 | AZ113: -0.3645831467 | BB113: 0.3854452644 | BC113: -0.0008463537333
AB114: 112 | AC114: 0.0165 | AD114: 0.002 | AF114: 215.0565 | AG114: -1.92 | AI114: 119.4831667 | AJ114: -1.066666667 | AK114: 119.4686667 | AL114: -1.066666667 | AM114: 334.5251667 | AN114: -2.986666667 | AP114: 0.07483330347 | AQ114: -0.0005208330667 | AR114: 0.06033330347 | AS114: -0.0005208330667 | AT114: 0.002 | AU114: 0 | AW114: 40.84981243 | AX114: -0.3645831467 | AY114: 40.83531243 | AZ114: -0.3645831467 | BB114: 0.3862916181 | BC114: -0.0008463537333
AB115: 113 | AC115: 0.0165 | AD115: 0.002 | AF115: 216.9765 | AG115: -1.92 | AI115: 120.5498333 | AJ115: -1.066666667 | AK115: 120.5353333 | AL115: -1.066666667 | AM115: 337.5118333 | AN115: -2.986666667 | AP115: 0.07535413653 | AQ115: -0.0005208330667 | AR115: 0.06085413653 | AS115: -0.0005208330667 | AT115: 0.002 | AU115: 0 | AW115: 41.21439557 | AX115: -0.3645831467 | AY115: 41.19989557 | AZ115: -0.3645831467 | BB115: 0.3871379719 | BC115: -0.0008463537333
AB116: 114 | AC116: 0.0165 | AD116: 0.002 | AF116: 218.8965 | AG116: -1.92 | AI116: 121.6165 | AJ116: -1.066666667 | AK116: 121.602 | AL116: -1.066666667 | AM116: 340.4985 | AN116: -2.986666667 | AP116: 0.0758749696 | AQ116: -0.0005208330667 | AR116: 0.0613749696 | AS116: -0.0005208330667 | AT116: 0.002 | AU116: 0 | AW116: 41.57897872 | AX116: -0.3645831467 | AY116: 41.56447872 | AZ116: -0.3645831467 | BB116: 0.3879843256 | BC116: -0.0008463537333
AB117: 115 | AC117: 0.0165 | AD117: 0.002 | AF117: 220.8165 | AG117: -1.92 | AI117: 122.6831667 | AJ117: -1.066666667 | AK117: 122.6686667 | AL117: -1.066666667 | AM117: 343.4851667 | AN117: -2.986666667 | AP117: 0.07639580267 | AQ117: -0.0005208330667 | AR117: 0.06189580267 | AS117: -0.0005208330667 | AT117: 0.002 | AU117: 0 | AW117: 41.94356187 | AX117: -0.3645831467 | AY117: 41.92906187 | AZ117: -0.3645831467 | BB117: 0.3888306793 | BC117: -0.0008463537333
AB118: 116 | AC118: 0.0165 | AD118: 0.002 | AF118: 222.7365 | AG118: -1.92 | AI118: 123.7498333 | AJ118: -1.066666667 | AK118: 123.7353333 | AL118: -1.066666667 | AM118: 346.4718333 | AN118: -2.986666667 | AP118: 0.07691663573 | AQ118: -0.0005208330667 | AR118: 0.06241663573 | AS118: -0.0005208330667 | AT118: 0.002 | AU118: 0 | AW118: 42.30814501 | AX118: -0.3645831467 | AY118: 42.29364501 | AZ118: -0.3645831467 | BB118: 0.3896770331 | BC118: -0.0008463537333
AB119: 117 | AC119: 0.0165 | AD119: 0.002 | AF119: 224.6565 | AG119: -1.92 | AI119: 124.8165 | AJ119: -1.066666667 | AK119: 124.802 | AL119: -1.066666667 | AM119: 349.4585 | AN119: -2.986666667 | AP119: 0.0774374688 | AQ119: -0.0005208330667 | AR119: 0.0629374688 | AS119: -0.0005208330667 | AT119: 0.002 | AU119: 0 | AW119: 42.67272816 | AX119: -0.3645831467 | AY119: 42.65822816 | AZ119: -0.3645831467 | BB119: 0.3905233868 | BC119: -0.0008463537333
AB120: 118 | AC120: 0.0165 | AD120: 0.002 | AF120: 226.5765 | AG120: -1.92 | AI120: 125.8831667 | AJ120: -1.066666667 | AK120: 125.8686667 | AL120: -1.066666667 | AM120: 352.4451667 | AN120: -2.986666667 | AP120: 0.07795830187 | AQ120: -0.0005208330667 | AR120: 0.06345830187 | AS120: -0.0005208330667 | AT120: 0.002 | AU120: 0 | AW120: 43.03731131 | AX120: -0.3645831467 | AY120: 43.02281131 | AZ120: -0.3645831467 | BB120: 0.3913697405 | BC120: -0.0008463537333
AB121: 119 | AC121: 0.0165 | AD121: 0.002 | AF121: 228.4965 | AG121: -1.92 | AI121: 126.9498333 | AJ121: -1.066666667 | AK121: 126.9353333 | AL121: -1.066666667 | AM121: 355.4318333 | AN121: -2.986666667 | AP121: 0.07847913493 | AQ121: -0.0005208330667 | AR121: 0.06397913493 | AS121: -0.0005208330667 | AT121: 0.002 | AU121: 0 | AW121: 43.40189445 | AX121: -0.3645831467 | AY121: 43.38739445 | AZ121: -0.3645831467 | BB121: 0.3922160943 | BC121: -0.0008463537333
AB122: 120 | AC122: 0.0165 | AD122: 0.002 | AF122: 230.4165 | AG122: -1.92 | AI122: 128.0165 | AJ122: -1.066666667 | AK122: 128.002 | AL122: -1.066666667 | AM122: 358.4185 | AN122: -2.986666667 | AP122: 0.078999968 | AQ122: -0.0005208330667 | AR122: 0.064499968 | AS122: -0.0005208330667 | AT122: 0.002 | AU122: 0 | AW122: 43.7664776 | AX122: -0.3645831467 | AY122: 43.7519776 | AZ122: -0.3645831467 | BB122: 0.393062448 | BC122: -0.0008463537333
AB123: 121 | AC123: 0.0165 | AD123: 0.002 | AF123: 232.3365 | AG123: -1.92 | AI123: 129.0831667 | AJ123: -1.066666667 | AK123: 129.0686667 | AL123: -1.066666667 | AM123: 361.4051667 | AN123: -2.986666667 | AP123: 0.07952080107 | AQ123: -0.0005208330667 | AR123: 0.06502080107 | AS123: -0.0005208330667 | AT123: 0.002 | AU123: 0 | AW123: 44.13106075 | AX123: -0.3645831467 | AY123: 44.11656075 | AZ123: -0.3645831467 | BB123: 0.3939088017 | BC123: -0.0008463537333
AB124: 122 | AC124: 0.0165 | AD124: 0.002 | AF124: 234.2565 | AG124: -1.92 | AI124: 130.1498333 | AJ124: -1.066666667 | AK124: 130.1353333 | AL124: -1.066666667 | AM124: 364.3918333 | AN124: -2.986666667 | AP124: 0.08004163413 | AQ124: -0.0005208330667 | AR124: 0.06554163413 | AS124: -0.0005208330667 | AT124: 0.002 | AU124: 0 | AW124: 44.49564389 | AX124: -0.3645831467 | AY124: 44.48114389 | AZ124: -0.3645831467 | BB124: 0.3947551555 | BC124: -0.0008463537333
AB125: 123 | AC125: 0.0165 | AD125: 0.002 | AF125: 236.1765 | AG125: -1.92 | AI125: 131.2165 | AJ125: -1.066666667 | AK125: 131.202 | AL125: -1.066666667 | AM125: 367.3785 | AN125: -2.986666667 | AP125: 0.0805624672 | AQ125: -0.0005208330667 | AR125: 0.0660624672 | AS125: -0.0005208330667 | AT125: 0.002 | AU125: 0 | AW125: 44.86022704 | AX125: -0.3645831467 | AY125: 44.84572704 | AZ125: -0.3645831467 | BB125: 0.3956015092 | BC125: -0.0008463537333
AB126: 124 | AC126: 0.0165 | AD126: 0.002 | AF126: 238.0965 | AG126: -1.92 | AI126: 132.2831667 | AJ126: -1.066666667 | AK126: 132.2686667 | AL126: -1.066666667 | AM126: 370.3651667 | AN126: -2.986666667 | AP126: 0.08108330027 | AQ126: -0.0005208330667 | AR126: 0.06658330027 | AS126: -0.0005208330667 | AT126: 0.002 | AU126: 0 | AW126: 45.22481019 | AX126: -0.3645831467 | AY126: 45.21031019 | AZ126: -0.3645831467 | BB126: 0.3964478629 | BC126: -0.0008463537333
AB127: 125 | AC127: 0.0165 | AD127: 0.002 | AF127: 240.0165 | AG127: -1.92 | AI127: 133.3498333 | AJ127: -1.066666667 | AK127: 133.3353333 | AL127: -1.066666667 | AM127: 373.3518333 | AN127: -2.986666667 | AP127: 0.08160413333 | AQ127: -0.0005208330667 | AR127: 0.06710413333 | AS127: -0.0005208330667 | AT127: 0.002 | AU127: 0 | AW127: 45.58939333 | AX127: -0.3645831467 | AY127: 45.57489333 | AZ127: -0.3645831467 | BB127: 0.3972942167 | BC127: -0.0008463537333
AB128: 126 | AC128: 0.0165 | AD128: 0.002 | AF128: 241.9365 | AG128: -1.92 | AI128: 134.4165 | AJ128: -1.066666667 | AK128: 134.402 | AL128: -1.066666667 | AM128: 376.3385 | AN128: -2.986666667 | AP128: 0.0821249664 | AQ128: -0.0005208330667 | AR128: 0.0676249664 | AS128: -0.0005208330667 | AT128: 0.002 | AU128: 0 | AW128: 45.95397648 | AX128: -0.3645831467 | AY128: 45.93947648 | AZ128: -0.3645831467 | BB128: 0.3981405704 | BC128: -0.0008463537333
AB129: 127 | AC129: 0.0165 | AD129: 0.002 | AF129: 243.8565 | AG129: -1.92 | AI129: 135.4831667 | AJ129: -1.066666667 | AK129: 135.4686667 | AL129: -1.066666667 | AM129: 379.3251667 | AN129: -2.986666667 | AP129: 0.08264579947 | AQ129: -0.0005208330667 | AR129: 0.06814579947 | AS129: -0.0005208330667 | AT129: 0.002 | AU129: 0 | AW129: 46.31855963 | AX129: -0.3645831467 | AY129: 46.30405963 | AZ129: -0.3645831467 | BB129: 0.3989869241 | BC129: -0.0008463537333
AB130: 128 | AC130: 0.0165 | AD130: 0.002 | AF130: 245.7765 | AG130: -1.92 | AI130: 136.5498333 | AJ130: -1.066666667 | AK130: 136.5353333 | AL130: -1.066666667 | AM130: =AF130+AK130 -> 382.3118333 | AN130: -2.986666667 | AP130: 0.08316663253 | AQ130: -0.0005208330667 | AR130: 0.06866663253 | AS130: -0.0005208330667 | AT130: 0.002 | AU130: 0 | AW130: 46.68314277 | AX130: -0.3645831467 | AY130: 46.66864277 | AZ130: -0.3645831467 | BB130: 0.3998332779 | BC130: -0.0008463537333
AB131: 129 | AC131: 0.0165 | AD131: 0.002 | AF131: 247.6965 | AG131: =AF130-AF131 -> -1.92 | AI131: 137.6165 | AJ131: -1.066666667 | AK131: 137.602 | AL131: -1.066666667 | AM131: 385.2985 | AN131: -2.986666667 | AP131: 0.0836874656 | AQ131: -0.0005208330667 | AR131: 0.0691874656 | AS131: -0.0005208330667 | AT131: 0.002 | AU131: 0 | AW131: 47.04772592 | AX131: -0.3645831467 | AY131: 47.03322592 | AZ131: -0.3645831467 | BB131: 0.4006796316 | BC131: -0.0008463537333
AB132: 130 | AC132: 0.0165 | AD132: 0.002 | AF132: 249.6165 | AG132: -1.92 | AI132: 138.6831667 | AJ132: =AI131-AI132 -> -1.066666667 | AK132: =$AD132+(($AB132*$W$2)*$L$2/($S$2*$T$2)*$U$2) -> 138.6686667 | AL132: -1.066666667 | AM132: 388.2851667 | AN132: -2.986666667 | AP132: =$AC132+(($AB132*$X$2)*($O$2/($R$2*$T$2))) -> 0.08420829867 | AQ132: -0.0005208330667 | AR132: 0.06970829867 | AS132: -0.0005208330667 | AT132: =AD132 -> 0.002 | AU132: 0 | AW132: 47.41230907 | AX132: -0.3645831467 | AY132: =$AD132+(($AB132*$W$2)*$M$2/($S$2*$T$2)*$U$2) -> 47.39780907 | AZ132: -0.3645831467 | BB132: =$AC132+(($AB132*$X$2)*(($O$2+$P$2)/($R$2*$T$2)))+($G$2*1) -> 0.4015259853 | BC132: -0.0008463537333
AB133: 131 | AC133: =IF($AB133<$Y$4,$Y$2,(IF(($AC132-$Y$3)>0,$AC132-$Y$3,0))) -> 0.0165 | AD133: =IF($AB133<$AA$4,$AA$2,(IF(($AD132-$AA$3)>0,$AD132-$AA$3,0))) -> 0.002 | AF133: =$AC133+(($AB133*$W$2)*$K$2/($Q$2*$T$2)) -> 251.5365 | AG133: -1.92 | AI133: =$AC133+(($AB133*$W$2)*$L$2/($Q$2*$T$2)) -> 139.7498333 | AJ133: =AI132-AI133 -> -1.066666667 | AK133: 139.7353333 | AL133: -1.066666667 | AM133: 391.2718333 | AN133: -2.986666667 | AP133: 0.08472913173 | AQ133: =AP132-AP133 -> -0.0005208330667 | AR133: 0.07022913173 | AS133: -0.0005208330667 | AT133: 0.002 | AU133: 0 | AW133: =$AC133+(($AB133*$W$2)*$M$2/($Q$2*$T$2)) -> 47.77689221 | AX133: =AW132-AW133 -> -0.3645831467 | AY133: 47.76239221 | AZ133: =AY132-AY133 -> -0.3645831467 | BB133: 0.4023723391 | BC133: =BB132-BB133 -> -0.0008463537333
AB134: 132 | AC134: 0.0165 | AD134: 0.002 | AF134: 253.4565 | AG134: -1.92 | AI134: 140.8165 | AJ134: -1.066666667 | AK134: 140.802 | AL134: -1.066666667 | AM134: 394.2585 | AN134: -2.986666667 | AP134: 0.0852499648 | AQ134: -0.0005208330667 | AR134: 0.0707499648 | AS134: -0.0005208330667 | AT134: 0.002 | AU134: 0 | AW134: 48.14147536 | AX134: -0.3645831467 | AY134: 48.12697536 | AZ134: -0.3645831467 | BB134: 0.4032186928 | BC134: -0.0008463537333
AB135: 133 | AC135: 0.0165 | AD135: 0.002 | AF135: 255.3765 | AG135: -1.92 | AI135: 141.8831667 | AJ135: -1.066666667 | AK135: 141.8686667 | AL135: -1.066666667 | AM135: 397.2451667 | AN135: -2.986666667 | AP135: 0.08577079787 | AQ135: -0.0005208330667 | AR135: 0.07127079787 | AS135: -0.0005208330667 | AT135: 0.002 | AU135: 0 | AW135: 48.50605851 | AX135: -0.3645831467 | AY135: 48.49155851 | AZ135: -0.3645831467 | BB135: 0.4040650465 | BC135: -0.0008463537333
AB136: 134 | AC136: 0.0165 | AD136: 0.002 | AF136: 257.2965 | AG136: -1.92 | AI136: 142.9498333 | AJ136: -1.066666667 | AK136: 142.9353333 | AL136: -1.066666667 | AM136: 400.2318333 | AN136: -2.986666667 | AP136: 0.08629163093 | AQ136: -0.0005208330667 | AR136: 0.07179163093 | AS136: -0.0005208330667 | AT136: 0.002 | AU136: 0 | AW136: 48.87064165 | AX136: -0.3645831467 | AY136: 48.85614165 | AZ136: -0.3645831467 | BB136: 0.4049114003 | BC136: -0.0008463537333
AB137: 135 | AC137: 0.0165 | AD137: 0.002 | AF137: 259.2165 | AG137: -1.92 | AI137: 144.0165 | AJ137: -1.066666667 | AK137: 144.002 | AL137: -1.066666667 | AM137: 403.2185 | AN137: -2.986666667 | AP137: 0.086812464 | AQ137: -0.0005208330667 | AR137: 0.072312464 | AS137: -0.0005208330667 | AT137: 0.002 | AU137: 0 | AW137: 49.2352248 | AX137: -0.3645831467 | AY137: 49.2207248 | AZ137: -0.3645831467 | BB137: 0.405757754 | BC137: -0.0008463537333
AB138: 136 | AC138: 0.0165 | AD138: 0.002 | AF138: 261.1365 | AG138: -1.92 | AI138: 145.0831667 | AJ138: -1.066666667 | AK138: 145.0686667 | AL138: -1.066666667 | AM138: 406.2051667 | AN138: -2.986666667 | AP138: 0.08733329707 | AQ138: -0.0005208330667 | AR138: =$AD138+(($AB138*$X$2)*$O$2/($S$2*$T$2)*$V$2) -> 0.07283329707 | AS138: -0.0005208330667 | AT138: 0.002 | AU138: 0 | AW138: 49.59980795 | AX138: -0.3645831467 | AY138: 49.58530795 | AZ138: -0.3645831467 | BB138: 0.4066041077 | BC138: -0.0008463537333
AB139: 137 | AC139: 0.0165 | AD139: 0.002 | AF139: 263.0565 | AG139: -1.92 | AI139: 146.1498333 | AJ139: -1.066666667 | AK139: 146.1353333 | AL139: -1.066666667 | AM139: 409.1918333 | AN139: -2.986666667 | AP139: 0.08785413013 | AQ139: -0.0005208330667 | AR139: 0.07335413013 | AS139: -0.0005208330667 | AT139: 0.002 | AU139: 0 | AW139: 49.96439109 | AX139: -0.3645831467 | AY139: 49.94989109 | AZ139: -0.3645831467 | BB139: 0.4074504615 | BC139: -0.0008463537333
AB140: 138 | AC140: 0.0165 | AD140: 0.002 | AF140: 264.9765 | AG140: -1.92 | AI140: 147.2165 | AJ140: -1.066666667 | AK140: 147.202 | AL140: -1.066666667 | AM140: 412.1785 | AN140: -2.986666667 | AP140: 0.0883749632 | AQ140: -0.0005208330667 | AR140: 0.0738749632 | AS140: -0.0005208330667 | AT140: 0.002 | AU140: 0 | AW140: 50.32897424 | AX140: -0.3645831467 | AY140: 50.31447424 | AZ140: -0.3645831467 | BB140: 0.4082968152 | BC140: -0.0008463537333
AB141: 139 | AC141: 0.0165 | AD141: 0.002 | AF141: 266.8965 | AG141: -1.92 | AI141: 148.2831667 | AJ141: -1.066666667 | AK141: 148.2686667 | AL141: -1.066666667 | AM141: 415.1651667 | AN141: -2.986666667 | AP141: 0.08889579627 | AQ141: -0.0005208330667 | AR141: 0.07439579627 | AS141: -0.0005208330667 | AT141: 0.002 | AU141: 0 | AW141: 50.69355739 | AX141: -0.3645831467 | AY141: 50.67905739 | AZ141: -0.3645831467 | BB141: 0.4091431689 | BC141: -0.0008463537333
AB142: 140 | AC142: 0.0165 | AD142: 0.002 | AF142: 268.8165 | AG142: -1.92 | AI142: 149.3498333 | AJ142: -1.066666667 | AK142: 149.3353333 | AL142: -1.066666667 | AM142: 418.1518333 | AN142: -2.986666667 | AP142: 0.08941662933 | AQ142: -0.0005208330667 | AR142: 0.07491662933 | AS142: -0.0005208330667 | AT142: 0.002 | AU142: 0 | AW142: 51.05814053 | AX142: -0.3645831467 | AY142: 51.04364053 | AZ142: -0.3645831467 | BB142: 0.4099895227 | BC142: -0.0008463537333
AB143: 141 | AC143: 0.0165 | AD143: 0.002 | AF143: 270.7365 | AG143: -1.92 | AI143: 150.4165 | AJ143: -1.066666667 | AK143: 150.402 | AL143: -1.066666667 | AM143: 421.1385 | AN143: -2.986666667 | AP143: 0.0899374624 | AQ143: -0.0005208330667 | AR143: 0.0754374624 | AS143: -0.0005208330667 | AT143: 0.002 | AU143: 0 | AW143: 51.42272368 | AX143: -0.3645831467 | AY143: 51.40822368 | AZ143: -0.3645831467 | BB143: 0.4108358764 | BC143: -0.0008463537333
AB144: 142 | AC144: 0.0165 | AD144: 0.002 | AF144: 272.6565 | AG144: -1.92 | AI144: 151.4831667 | AJ144: -1.066666667 | AK144: 151.4686667 | AL144: -1.066666667 | AM144: 424.1251667 | AN144: -2.986666667 | AP144: 0.09045829547 | AQ144: -0.0005208330667 | AR144: 0.07595829547 | AS144: -0.0005208330667 | AT144: 0.002 | AU144: 0 | AW144: 51.78730683 | AX144: -0.3645831467 | AY144: 51.77280683 | AZ144: -0.3645831467 | BB144: 0.4116822301 | BC144: -0.0008463537333
AB145: 143 | AC145: 0.0165 | AD145: 0.002 | AF145: 274.5765 | AG145: -1.92 | AI145: 152.5498333 | AJ145: -1.066666667 | AK145: 152.5353333 | AL145: -1.066666667 | AM145: 427.1118333 | AN145: -2.986666667 | AP145: 0.09097912853 | AQ145: -0.0005208330667 | AR145: 0.07647912853 | AS145: -0.0005208330667 | AT145: 0.002 | AU145: 0 | AW145: 52.15188997 | AX145: -0.3645831467 | AY145: 52.13738997 | AZ145: -0.3645831467 | BB145: 0.4125285839 | BC145: -0.0008463537333
AB146: 144 | AC146: 0.0165 | AD146: 0.002 | AF146: 276.4965 | AG146: -1.92 | AI146: 153.6165 | AJ146: -1.066666667 | AK146: 153.602 | AL146: -1.066666667 | AM146: 430.0985 | AN146: -2.986666667 | AP146: 0.0914999616 | AQ146: -0.0005208330667 | AR146: 0.0769999616 | AS146: -0.0005208330667 | AT146: 0.002 | AU146: 0 | AW146: 52.51647312 | AX146: -0.3645831467 | AY146: 52.50197312 | AZ146: -0.3645831467 | BB146: 0.4133749376 | BC146: -0.0008463537333
AB147: 145 | AC147: 0.0165 | AD147: 0.002 | AF147: 278.4165 | AG147: -1.92 | AI147: 154.6831667 | AJ147: -1.066666667 | AK147: 154.6686667 | AL147: -1.066666667 | AM147: 433.0851667 | AN147: -2.986666667 | AP147: 0.09202079467 | AQ147: -0.0005208330667 | AR147: 0.07752079467 | AS147: -0.0005208330667 | AT147: 0.002 | AU147: 0 | AW147: 52.88105627 | AX147: -0.3645831467 | AY147: 52.86655627 | AZ147: -0.3645831467 | BB147: 0.4142212913 | BC147: -0.0008463537333
AB148: 146 | AC148: 0.0165 | AD148: 0.002 | AF148: 280.3365 | AG148: -1.92 | AI148: 155.7498333 | AJ148: -1.066666667 | AK148: 155.7353333 | AL148: -1.066666667 | AM148: 436.0718333 | AN148: -2.986666667 | AP148: 0.09254162773 | AQ148: -0.0005208330667 | AR148: 0.07804162773 | AS148: -0.0005208330667 | AT148: 0.002 | AU148: 0 | AW148: 53.24563941 | AX148: -0.3645831467 | AY148: 53.23113941 | AZ148: -0.3645831467 | BB148: 0.4150676451 | BC148: -0.0008463537333
AB149: 147 | AC149: 0.0165 | AD149: 0.002 | AF149: 282.2565 | AG149: -1.92 | AI149: 156.8165 | AJ149: -1.066666667 | AK149: 156.802 | AL149: -1.066666667 | AM149: 439.0585 | AN149: -2.986666667 | AP149: 0.0930624608 | AQ149: -0.0005208330667 | AR149: 0.0785624608 | AS149: -0.0005208330667 | AT149: 0.002 | AU149: 0 | AW149: 53.61022256 | AX149: -0.3645831467 | AY149: 53.59572256 | AZ149: -0.3645831467 | BB149: 0.4159139988 | BC149: -0.0008463537333
AB150: 148 | AC150: 0.0165 | AD150: 0.002 | AF150: 284.1765 | AG150: -1.92 | AI150: 157.8831667 | AJ150: -1.066666667 | AK150: 157.8686667 | AL150: -1.066666667 | AM150: 442.0451667 | AN150: -2.986666667 | AP150: 0.09358329387 | AQ150: -0.0005208330667 | AR150: 0.07908329387 | AS150: -0.0005208330667 | AT150: 0.002 | AU150: 0 | AW150: 53.97480571 | AX150: -0.3645831467 | AY150: 53.96030571 | AZ150: -0.3645831467 | BB150: 0.4167603525 | BC150: -0.0008463537333
AB151: 149 | AC151: 0.0165 | AD151: 0.002 | AF151: 286.0965 | AG151: -1.92 | AI151: 158.9498333 | AJ151: -1.066666667 | AK151: 158.9353333 | AL151: -1.066666667 | AM151: 445.0318333 | AN151: -2.986666667 | AP151: 0.09410412693 | AQ151: -0.0005208330667 | AR151: 0.07960412693 | AS151: -0.0005208330667 | AT151: 0.002 | AU151: 0 | AW151: 54.33938885 | AX151: -0.3645831467 | AY151: 54.32488885 | AZ151: -0.3645831467 | BB151: 0.4176067063 | BC151: -0.0008463537333
AB152: 150 | AC152: 0.0165 | AD152: 0.002 | AF152: 288.0165 | AG152: -1.92 | AI152: 160.0165 | AJ152: -1.066666667 | AK152: 160.002 | AL152: -1.066666667 | AM152: 448.0185 | AN152: -2.986666667 | AP152: 0.09462496 | AQ152: -0.0005208330667 | AR152: 0.08012496 | AS152: -0.0005208330667 | AT152: 0.002 | AU152: 0 | AW152: 54.703972 | AX152: -0.3645831467 | AY152: 54.689472 | AZ152: -0.3645831467 | BB152: 0.41845306 | BC152: -0.0008463537333
AB153: 151 | AC153: 0.0165 | AD153: 0.002 | AF153: 289.9365 | AG153: -1.92 | AI153: 161.0831667 | AJ153: -1.066666667 | AK153: 161.0686667 | AL153: -1.066666667 | AM153: 451.0051667 | AN153: -2.986666667 | AP153: 0.09514579307 | AQ153: -0.0005208330667 | AR153: 0.08064579307 | AS153: -0.0005208330667 | AT153: 0.002 | AU153: 0 | AW153: 55.06855515 | AX153: -0.3645831467 | AY153: 55.05405515 | AZ153: -0.3645831467 | BB153: 0.4192994137 | BC153: -0.0008463537333
AB154: 152 | AC154: 0.0165 | AD154: 0.002 | AF154: 291.8565 | AG154: -1.92 | AI154: 162.1498333 | AJ154: -1.066666667 | AK154: 162.1353333 | AL154: -1.066666667 | AM154: 453.9918333 | AN154: -2.986666667 | AP154: 0.09566662613 | AQ154: -0.0005208330667 | AR154: 0.08116662613 | AS154: -0.0005208330667 | AT154: 0.002 | AU154: 0 | AW154: 55.43313829 | AX154: -0.3645831467 | AY154: 55.41863829 | AZ154: -0.3645831467 | BB154: 0.4201457675 | BC154: -0.0008463537333
AB155: 153 | AC155: 0.0165 | AD155: 0.002 | AF155: 293.7765 | AG155: -1.92 | AI155: 163.2165 | AJ155: -1.066666667 | AK155: 163.202 | AL155: -1.066666667 | AM155: 456.9785 | AN155: -2.986666667 | AP155: 0.0961874592 | AQ155: -0.0005208330667 | AR155: 0.0816874592 | AS155: -0.0005208330667 | AT155: 0.002 | AU155: 0 | AW155: 55.79772144 | AX155: -0.3645831467 | AY155: 55.78322144 | AZ155: -0.3645831467 | BB155: 0.4209921212 | BC155: -0.0008463537333
AB156: 154 | AC156: 0.0165 | AD156: 0.002 | AF156: 295.6965 | AG156: -1.92 | AI156: 164.2831667 | AJ156: -1.066666667 | AK156: 164.2686667 | AL156: -1.066666667 | AM156: 459.9651667 | AN156: -2.986666667 | AP156: 0.09670829227 | AQ156: -0.0005208330667 | AR156: 0.08220829227 | AS156: -0.0005208330667 | AT156: 0.002 | AU156: 0 | AW156: 56.16230459 | AX156: -0.3645831467 | AY156: 56.14780459 | AZ156: -0.3645831467 | BB156: 0.4218384749 | BC156: -0.0008463537333
AB157: 155 | AC157: 0.0165 | AD157: 0.002 | AF157: 297.6165 | AG157: -1.92 | AI157: 165.3498333 | AJ157: -1.066666667 | AK157: 165.3353333 | AL157: -1.066666667 | AM157: 462.9518333 | AN157: -2.986666667 | AP157: 0.09722912533 | AQ157: -0.0005208330667 | AR157: 0.08272912533 | AS157: -0.0005208330667 | AT157: 0.002 | AU157: 0 | AW157: 56.52688773 | AX157: -0.3645831467 | AY157: 56.51238773 | AZ157: -0.3645831467 | BB157: 0.4226848287 | BC157: -0.0008463537333
AB158: 156 | AC158: 0.0165 | AD158: 0.002 | AF158: 299.5365 | AG158: -1.92 | AI158: 166.4165 | AJ158: -1.066666667 | AK158: 166.402 | AL158: -1.066666667 | AM158: 465.9385 | AN158: -2.986666667 | AP158: 0.0977499584 | AQ158: -0.0005208330667 | AR158: 0.0832499584 | AS158: -0.0005208330667 | AT158: 0.002 | AU158: 0 | AW158: 56.89147088 | AX158: -0.3645831467 | AY158: 56.87697088 | AZ158: -0.3645831467 | BB158: 0.4235311824 | BC158: -0.0008463537333
AB159: 157 | AC159: 0.0165 | AD159: 0.002 | AF159: 301.4565 | AG159: -1.92 | AI159: 167.4831667 | AJ159: -1.066666667 | AK159: 167.4686667 | AL159: -1.066666667 | AM159: 468.9251667 | AN159: -2.986666667 | AP159: 0.09827079147 | AQ159: -0.0005208330667 | AR159: 0.08377079147 | AS159: -0.0005208330667 | AT159: 0.002 | AU159: 0 | AW159: 57.25605403 | AX159: -0.3645831467 | AY159: 57.24155403 | AZ159: -0.3645831467 | BB159: 0.4243775361 | BC159: -0.0008463537333
AB160: 158 | AC160: 0.0165 | AD160: 0.002 | AF160: 303.3765 | AG160: -1.92 | AI160: 168.5498333 | AJ160: -1.066666667 | AK160: 168.5353333 | AL160: -1.066666667 | AM160: 471.9118333 | AN160: -2.986666667 | AP160: 0.09879162453 | AQ160: -0.0005208330667 | AR160: 0.08429162453 | AS160: -0.0005208330667 | AT160: 0.002 | AU160: 0 | AW160: 57.62063717 | AX160: -0.3645831467 | AY160: 57.60613717 | AZ160: -0.3645831467 | BB160: 0.4252238899 | BC160: -0.0008463537333
AB161: 159 | AC161: 0.0165 | AD161: 0.002 | AF161: 305.2965 | AG161: -1.92 | AI161: 169.6165 | AJ161: -1.066666667 | AK161: 169.602 | AL161: -1.066666667 | AM161: 474.8985 | AN161: -2.986666667 | AP161: 0.0993124576 | AQ161: -0.0005208330667 | AR161: 0.0848124576 | AS161: -0.0005208330667 | AT161: 0.002 | AU161: 0 | AW161: 57.98522032 | AX161: -0.3645831467 | AY161: 57.97072032 | AZ161: -0.3645831467 | BB161: 0.4260702436 | BC161: -0.0008463537333
AB162: 160 | AC162: 0.0165 | AD162: 0.002 | AF162: 307.2165 | AG162: -1.92 | AI162: 170.6831667 | AJ162: -1.066666667 | AK162: 170.6686667 | AL162: -1.066666667 | AM162: 477.8851667 | AN162: -2.986666667 | AP162: 0.09983329067 | AQ162: -0.0005208330667 | AR162: 0.08533329067 | AS162: -0.0005208330667 | AT162: 0.002 | AU162: 0 | AW162: 58.34980347 | AX162: -0.3645831467 | AY162: 58.33530347 | AZ162: -0.3645831467 | BB162: 0.4269165973 | BC162: -0.0008463537333
AB163: 161 | AC163: 0.0165 | AD163: 0.002 | AF163: 309.1365 | AG163: -1.92 | AI163: 171.7498333 | AJ163: -1.066666667 | AK163: 171.7353333 | AL163: -1.066666667 | AM163: 480.8718333 | AN163: -2.986666667 | AP163: 0.1003541237 | AQ163: -0.0005208330667 | AR163: 0.08585412373 | AS163: -0.0005208330667 | AT163: 0.002 | AU163: 0 | AW163: 58.71438661 | AX163: -0.3645831467 | AY163: 58.69988661 | AZ163: -0.3645831467 | BB163: 0.4277629511 | BC163: -0.0008463537333
AB164: 162 | AC164: 0.0165 | AD164: 0.002 | AF164: 311.0565 | AG164: -1.92 | AI164: 172.8165 | AJ164: -1.066666667 | AK164: 172.802 | AL164: -1.066666667 | AM164: 483.8585 | AN164: -2.986666667 | AP164: 0.1008749568 | AQ164: -0.0005208330667 | AR164: 0.0863749568 | AS164: -0.0005208330667 | AT164: 0.002 | AU164: 0 | AW164: 59.07896976 | AX164: -0.3645831467 | AY164: 59.06446976 | AZ164: -0.3645831467 | BB164: 0.4286093048 | BC164: -0.0008463537333
AB165: 163 | AC165: 0.0165 | AD165: 0.002 | AF165: 312.9765 | AG165: -1.92 | AI165: 173.8831667 | AJ165: -1.066666667 | AK165: 173.8686667 | AL165: -1.066666667 | AM165: 486.8451667 | AN165: -2.986666667 | AP165: 0.1013957899 | AQ165: -0.0005208330667 | AR165: 0.08689578987 | AS165: -0.0005208330667 | AT165: 0.002 | AU165: 0 | AW165: 59.44355291 | AX165: -0.3645831467 | AY165: 59.42905291 | AZ165: -0.3645831467 | BB165: 0.4294556585 | BC165: -0.0008463537333
AB166: 164 | AC166: 0.0165 | AD166: 0.002 | AF166: 314.8965 | AG166: -1.92 | AI166: 174.9498333 | AJ166: -1.066666667 | AK166: 174.9353333 | AL166: -1.066666667 | AM166: 489.8318333 | AN166: -2.986666667 | AP166: 0.1019166229 | AQ166: -0.0005208330667 | AR166: 0.08741662293 | AS166: -0.0005208330667 | AT166: 0.002 | AU166: 0 | AW166: 59.80813605 | AX166: -0.3645831467 | AY166: 59.79363605 | AZ166: -0.3645831467 | BB166: 0.4303020123 | BC166: -0.0008463537333
AB167: 165 | AC167: 0.0165 | AD167: 0.002 | AF167: 316.8165 | AG167: -1.92 | AI167: 176.0165 | AJ167: -1.066666667 | AK167: 176.002 | AL167: -1.066666667 | AM167: 492.8185 | AN167: -2.986666667 | AP167: 0.102437456 | AQ167: -0.0005208330667 | AR167: 0.087937456 | AS167: -0.0005208330667 | AT167: 0.002 | AU167: 0 | AW167: 60.1727192 | AX167: -0.3645831467 | AY167: 60.1582192 | AZ167: -0.3645831467 | BB167: 0.431148366 | BC167: -0.0008463537333
AB168: 166 | AC168: 0.0165 | AD168: 0.002 | AF168: 318.7365 | AG168: -1.92 | AI168: 177.0831667 | AJ168: -1.066666667 | AK168: 177.0686667 | AL168: -1.066666667 | AM168: 495.8051667 | AN168: -2.986666667 | AP168: 0.1029582891 | AQ168: -0.0005208330667 | AR168: 0.08845828907 | AS168: -0.0005208330667 | AT168: 0.002 | AU168: 0 | AW168: 60.53730235 | AX168: -0.3645831467 | AY168: 60.52280235 | AZ168: -0.3645831467 | BB168: 0.4319947197 | BC168: -0.0008463537333
AB169: =AB168+1 -> 167 | AC169: 0.0165 | AD169: 0.002 | AF169: 320.6565 | AG169: -1.92 | AI169: 178.1498333 | AJ169: -1.066666667 | AK169: 178.1353333 | AL169: -1.066666667 | AM169: 498.7918333 | AN169: -2.986666667 | AP169: 0.1034791221 | AQ169: -0.0005208330667 | AR169: 0.08897912213 | AS169: -0.0005208330667 | AT169: 0.002 | AU169: 0 | AW169: 60.90188549 | AX169: -0.3645831467 | AY169: 60.88738549 | AZ169: -0.3645831467 | BB169: 0.4328410735 | BC169: -0.0008463537333
AB170: 168 | AC170: 0.0165 | AD170: 0.002 | AF170: 322.5765 | AG170: -1.92 | AI170: 179.2165 | AJ170: -1.066666667 | AK170: 179.202 | AL170: -1.066666667 | AM170: 501.7785 | AN170: -2.986666667 | AP170: 0.1039999552 | AQ170: -0.0005208330667 | AR170: 0.0894999552 | AS170: -0.0005208330667 | AT170: 0.002 | AU170: 0 | AW170: 61.26646864 | AX170: -0.3645831467 | AY170: 61.25196864 | AZ170: -0.3645831467 | BB170: 0.4336874272 | BC170: -0.0008463537333
AB171: 169 | AC171: 0.0165 | AD171: 0.002 | AF171: 324.4965 | AG171: -1.92 | AI171: 180.2831667 | AJ171: -1.066666667 | AK171: 180.2686667 | AL171: -1.066666667 | AM171: 504.7651667 | AN171: -2.986666667 | AP171: 0.1045207883 | AQ171: -0.0005208330667 | AR171: 0.09002078827 | AS171: -0.0005208330667 | AT171: 0.002 | AU171: 0 | AW171: 61.63105179 | AX171: -0.3645831467 | AY171: 61.61655179 | AZ171: -0.3645831467 | BB171: 0.4345337809 | BC171: -0.0008463537333
AB172: 170 | AC172: 0.0165 | AD172: 0.002 | AF172: 326.4165 | AG172: -1.92 | AI172: 181.3498333 | AJ172: -1.066666667 | AK172: 181.3353333 | AL172: -1.066666667 | AM172: 507.7518333 | AN172: -2.986666667 | AP172: 0.1050416213 | AQ172: -0.0005208330667 | AR172: 0.09054162133 | AS172: -0.0005208330667 | AT172: 0.002 | AU172: 0 | AW172: 61.99563493 | AX172: -0.3645831467 | AY172: 61.98113493 | AZ172: -0.3645831467 | BB172: 0.4353801347 | BC172: -0.0008463537333
AB173: 171 | AC173: 0.0165 | AD173: 0.002 | AF173: 328.3365 | AG173: -1.92 | AI173: 182.4165 | AJ173: -1.066666667 | AK173: 182.402 | AL173: -1.066666667 | AM173: 510.7385 | AN173: -2.986666667 | AP173: 0.1055624544 | AQ173: -0.0005208330667 | AR173: 0.0910624544 | AS173: -0.0005208330667 | AT173: 0.002 | AU173: 0 | AW173: 62.36021808 | AX173: -0.3645831467 | AY173: 62.34571808 | AZ173: -0.3645831467 | BB173: 0.4362264884 | BC173: -0.0008463537333
AB174: 172 | AC174: 0.0165 | AD174: 0.002 | AF174: 330.2565 | AG174: -1.92 | AI174: 183.4831667 | AJ174: -1.066666667 | AK174: 183.4686667 | AL174: -1.066666667 | AM174: 513.7251667 | AN174: -2.986666667 | AP174: 0.1060832875 | AQ174: -0.0005208330667 | AR174: 0.09158328747 | AS174: -0.0005208330667 | AT174: 0.002 | AU174: 0 | AW174: 62.72480123 | AX174: -0.3645831467 | AY174: 62.71030123 | AZ174: -0.3645831467 | BB174: 0.4370728421 | BC174: -0.0008463537333
AB175: 173 | AC175: 0.0165 | AD175: 0.002 | AF175: 332.1765 | AG175: -1.92 | AI175: 184.5498333 | AJ175: -1.066666667 | AK175: 184.5353333 | AL175: -1.066666667 | AM175: 516.7118333 | AN175: -2.986666667 | AP175: 0.1066041205 | AQ175: -0.0005208330667 | AR175: 0.09210412053 | AS175: -0.0005208330667 | AT175: 0.002 | AU175: 0 | AW175: 63.08938437 | AX175: -0.3645831467 | AY175: 63.07488437 | AZ175: -0.3645831467 | BB175: 0.4379191959 | BC175: -0.0008463537333
AB176: 174 | AC176: 0.0165 | AD176: 0.002 | AF176: 334.0965 | AG176: -1.92 | AI176: 185.6165 | AJ176: -1.066666667 | AK176: 185.602 | AL176: -1.066666667 | AM176: 519.6985 | AN176: -2.986666667 | AP176: 0.1071249536 | AQ176: -0.0005208330667 | AR176: 0.0926249536 | AS176: -0.0005208330667 | AT176: 0.002 | AU176: 0 | AW176: 63.45396752 | AX176: -0.3645831467 | AY176: 63.43946752 | AZ176: -0.3645831467 | BB176: 0.4387655496 | BC176: -0.0008463537333
AB177: 175 | AC177: 0.0165 | AD177: 0.002 | AF177: 336.0165 | AG177: -1.92 | AI177: 186.6831667 | AJ177: -1.066666667 | AK177: 186.6686667 | AL177: -1.066666667 | AM177: 522.6851667 | AN177: -2.986666667 | AP177: 0.1076457867 | AQ177: -0.0005208330667 | AR177: 0.09314578667 | AS177: -0.0005208330667 | AT177: 0.002 | AU177: 0 | AW177: 63.81855067 | AX177: -0.3645831467 | AY177: 63.80405067 | AZ177: -0.3645831467 | BB177: 0.4396119033 | BC177: -0.0008463537333
AB178: 176 | AC178: 0.0165 | AD178: 0.002 | AF178: 337.9365 | AG178: -1.92 | AI178: 187.7498333 | AJ178: -1.066666667 | AK178: 187.7353333 | AL178: -1.066666667 | AM178: 525.6718333 | AN178: -2.986666667 | AP178: 0.1081666197 | AQ178: -0.0005208330667 | AR178: 0.09366661973 | AS178: -0.0005208330667 | AT178: 0.002 | AU178: 0 | AW178: 64.18313381 | AX178: -0.3645831467 | AY178: 64.16863381 | AZ178: -0.3645831467 | BB178: 0.4404582571 | BC178: -0.0008463537333
AB179: 177 | AC179: 0.0165 | AD179: 0.002 | AF179: 339.8565 | AG179: -1.92 | AI179: 188.8165 | AJ179: -1.066666667 | AK179: 188.802 | AL179: -1.066666667 | AM179: 528.6585 | AN179: -2.986666667 | AP179: 0.1086874528 | AQ179: -0.0005208330667 | AR179: 0.0941874528 | AS179: -0.0005208330667 | AT179: 0.002 | AU179: 0 | AW179: 64.54771696 | AX179: -0.3645831467 | AY179: 64.53321696 | AZ179: -0.3645831467 | BB179: 0.4413046108 | BC179: -0.0008463537333
AB180: 178 | AC180: 0.0165 | AD180: 0.002 | AF180: 341.7765 | AG180: -1.92 | AI180: 189.8831667 | AJ180: -1.066666667 | AK180: 189.8686667 | AL180: -1.066666667 | AM180: 531.6451667 | AN180: -2.986666667 | AP180: 0.1092082859 | AQ180: -0.0005208330667 | AR180: 0.09470828587 | AS180: -0.0005208330667 | AT180: 0.002 | AU180: 0 | AW180: 64.91230011 | AX180: -0.3645831467 | AY180: 64.89780011 | AZ180: -0.3645831467 | BB180: 0.4421509645 | BC180: -0.0008463537333
AB181: 179 | AC181: 0.0165 | AD181: 0.002 | AF181: 343.6965 | AG181: -1.92 | AI181: 190.9498333 | AJ181: -1.066666667 | AK181: 190.9353333 | AL181: -1.066666667 | AM181: 534.6318333 | AN181: -2.986666667 | AP181: 0.1097291189 | AQ181: -0.0005208330667 | AR181: 0.09522911893 | AS181: -0.0005208330667 | AT181: 0.002 | AU181: 0 | AW181: 65.27688325 | AX181: -0.3645831467 | AY181: 65.26238325 | AZ181: -0.3645831467 | BB181: 0.4429973183 | BC181: -0.0008463537333
AB182: 180 | AC182: 0.0165 | AD182: 0.002 | AF182: 345.6165 | AG182: -1.92 | AI182: 192.0165 | AJ182: -1.066666667 | AK182: 192.002 | AL182: -1.066666667 | AM182: 537.6185 | AN182: -2.986666667 | AP182: 0.110249952 | AQ182: -0.0005208330667 | AR182: 0.095749952 | AS182: -0.0005208330667 | AT182: 0.002 | AU182: 0 | AW182: 65.6414664 | AX182: -0.3645831467 | AY182: 65.6269664 | AZ182: -0.3645831467 | BB182: 0.443843672 | BC182: -0.0008463537333
AB183: 181 | AC183: 0.0165 | AD183: 0.002 | AF183: 347.5365 | AG183: -1.92 | AI183: 193.0831667 | AJ183: -1.066666667 | AK183: 193.0686667 | AL183: -1.066666667 | AM183: 540.6051667 | AN183: -2.986666667 | AP183: 0.1107707851 | AQ183: -0.0005208330667 | AR183: 0.09627078507 | AS183: -0.0005208330667 | AT183: 0.002 | AU183: 0 | AW183: 66.00604955 | AX183: -0.3645831467 | AY183: 65.99154955 | AZ183: -0.3645831467 | BB183: 0.4446900257 | BC183: -0.0008463537333
AB184: 182 | AC184: 0.0165 | AD184: 0.002 | AF184: 349.4565 | AG184: -1.92 | AI184: 194.1498333 | AJ184: -1.066666667 | AK184: 194.1353333 | AL184: -1.066666667 | AM184: 543.5918333 | AN184: -2.986666667 | AP184: 0.1112916181 | AQ184: -0.0005208330667 | AR184: 0.09679161813 | AS184: -0.0005208330667 | AT184: 0.002 | AU184: 0 | AW184: 66.37063269 | AX184: -0.3645831467 | AY184: 66.35613269 | AZ184: -0.3645831467 | BB184: 0.4455363795 | BC184: -0.0008463537333
AB185: 183 | AC185: 0.0165 | AD185: 0.002 | AF185: 351.3765 | AG185: -1.92 | AI185: 195.2165 | AJ185: -1.066666667 | AK185: 195.202 | AL185: -1.066666667 | AM185: 546.5785 | AN185: -2.986666667 | AP185: 0.1118124512 | AQ185: -0.0005208330667 | AR185: 0.0973124512 | AS185: -0.0005208330667 | AT185: 0.002 | AU185: 0 | AW185: 66.73521584 | AX185: -0.3645831467 | AY185: 66.72071584 | AZ185: -0.3645831467 | BB185: 0.4463827332 | BC185: -0.0008463537333
AB186: 184 | AC186: 0.0165 | AD186: 0.002 | AF186: 353.2965 | AG186: -1.92 | AI186: 196.2831667 | AJ186: -1.066666667 | AK186: 196.2686667 | AL186: -1.066666667 | AM186: 549.5651667 | AN186: -2.986666667 | AP186: 0.1123332843 | AQ186: -0.0005208330667 | AR186: 0.09783328427 | AS186: -0.0005208330667 | AT186: 0.002 | AU186: 0 | AW186: 67.09979899 | AX186: -0.3645831467 | AY186: 67.08529899 | AZ186: -0.3645831467 | BB186: 0.4472290869 | BC186: -0.0008463537333
AB187: 185 | AC187: 0.0165 | AD187: 0.002 | AF187: 355.2165 | AG187: -1.92 | AI187: 197.3498333 | AJ187: -1.066666667 | AK187: 197.3353333 | AL187: -1.066666667 | AM187: 552.5518333 | AN187: -2.986666667 | AP187: 0.1128541173 | AQ187: -0.0005208330667 | AR187: 0.09835411733 | AS187: -0.0005208330667 | AT187: 0.002 | AU187: 0 | AW187: 67.46438213 | AX187: -0.3645831467 | AY187: 67.44988213 | AZ187: -0.3645831467 | BB187: 0.4480754407 | BC187: -0.0008463537333
AB188: 186 | AC188: 0.0165 | AD188: 0.002 | AF188: 357.1365 | AG188: -1.92 | AI188: 198.4165 | AJ188: -1.066666667 | AK188: 198.402 | AL188: -1.066666667 | AM188: 555.5385 | AN188: -2.986666667 | AP188: 0.1133749504 | AQ188: -0.0005208330667 | AR188: 0.0988749504 | AS188: -0.0005208330667 | AT188: 0.002 | AU188: 0 | AW188: 67.82896528 | AX188: -0.3645831467 | AY188: 67.81446528 | AZ188: -0.3645831467 | BB188: 0.4489217944 | BC188: -0.0008463537333
AB189: 187 | AC189: 0.0165 | AD189: 0.002 | AF189: 359.0565 | AG189: -1.92 | AI189: 199.4831667 | AJ189: -1.066666667 | AK189: 199.4686667 | AL189: -1.066666667 | AM189: 558.5251667 | AN189: -2.986666667 | AP189: 0.1138957835 | AQ189: -0.0005208330667 | AR189: 0.09939578347 | AS189: -0.0005208330667 | AT189: 0.002 | AU189: 0 | AW189: 68.19354843 | AX189: -0.3645831467 | AY189: 68.17904843 | AZ189: -0.3645831467 | BB189: 0.4497681481 | BC189: -0.0008463537333
AB190: 188 | AC190: 0.0165 | AD190: 0.002 | AF190: 360.9765 | AG190: -1.92 | AI190: 200.5498333 | AJ190: -1.066666667 | AK190: 200.5353333 | AL190: -1.066666667 | AM190: 561.5118333 | AN190: -2.986666667 | AP190: 0.1144166165 | AQ190: -0.0005208330667 | AR190: 0.09991661653 | AS190: -0.0005208330667 | AT190: 0.002 | AU190: 0 | AW190: 68.55813157 | AX190: -0.3645831467 | AY190: 68.54363157 | AZ190: -0.3645831467 | BB190: 0.4506145019 | BC190: -0.0008463537333
AB191: 189 | AC191: 0.0165 | AD191: 0.002 | AF191: 362.8965 | AG191: -1.92 | AI191: 201.6165 | AJ191: -1.066666667 | AK191: 201.602 | AL191: -1.066666667 | AM191: 564.4985 | AN191: -2.986666667 | AP191: 0.1149374496 | AQ191: -0.0005208330667 | AR191: 0.1004374496 | AS191: -0.0005208330667 | AT191: 0.002 | AU191: 0 | AW191: 68.92271472 | AX191: -0.3645831467 | AY191: 68.90821472 | AZ191: -0.3645831467 | BB191: 0.4514608556 | BC191: -0.0008463537333
AB192: 190 | AC192: 0.0165 | AD192: 0.002 | AF192: 364.8165 | AG192: -1.92 | AI192: 202.6831667 | AJ192: -1.066666667 | AK192: 202.6686667 | AL192: -1.066666667 | AM192: 567.4851667 | AN192: -2.986666667 | AP192: 0.1154582827 | AQ192: -0.0005208330667 | AR192: 0.1009582827 | AS192: -0.0005208330667 | AT192: 0.002 | AU192: 0 | AW192: 69.28729787 | AX192: -0.3645831467 | AY192: 69.27279787 | AZ192: -0.3645831467 | BB192: 0.4523072093 | BC192: -0.0008463537333
AB193: 191 | AC193: 0.0165 | AD193: 0.002 | AF193: 366.7365 | AG193: -1.92 | AI193: 203.7498333 | AJ193: -1.066666667 | AK193: 203.7353333 | AL193: -1.066666667 | AM193: 570.4718333 | AN193: -2.986666667 | AP193: 0.1159791157 | AQ193: -0.0005208330667 | AR193: 0.1014791157 | AS193: -0.0005208330667 | AT193: 0.002 | AU193: 0 | AW193: 69.65188101 | AX193: -0.3645831467 | AY193: 69.63738101 | AZ193: -0.3645831467 | BB193: 0.4531535631 | BC193: -0.0008463537333
AB194: 192 | AC194: 0.0165 | AD194: 0.002 | AF194: 368.6565 | AG194: -1.92 | AI194: 204.8165 | AJ194: -1.066666667 | AK194: 204.802 | AL194: -1.066666667 | AM194: =AF194+AK194 -> 573.4585 | AN194: -2.986666667 | AP194: 0.1164999488 | AQ194: -0.0005208330667 | AR194: 0.1019999488 | AS194: -0.0005208330667 | AT194: 0.002 | AU194: 0 | AW194: 70.01646416 | AX194: -0.3645831467 | AY194: 70.00196416 | AZ194: -0.3645831467 | BB194: 0.4539999168 | BC194: -0.0008463537333
AB195: 193 | AC195: 0.0165 | AD195: 0.002 | AF195: 370.5765 | AG195: =AF194-AF195 -> -1.92 | AI195: 205.8831667 | AJ195: -1.066666667 | AK195: 205.8686667 | AL195: -1.066666667 | AM195: 576.4451667 | AN195: -2.986666667 | AP195: 0.1170207819 | AQ195: -0.0005208330667 | AR195: 0.1025207819 | AS195: -0.0005208330667 | AT195: 0.002 | AU195: 0 | AW195: 70.38104731 | AX195: -0.3645831467 | AY195: 70.36654731 | AZ195: -0.3645831467 | BB195: 0.4548462705 | BC195: -0.0008463537333
AB196: 194 | AC196: 0.0165 | AD196: 0.002 | AF196: 372.4965 | AG196: -1.92 | AI196: 206.9498333 | AJ196: =AI195-AI196 -> -1.066666667 | AK196: =$AD196+(($AB196*$W$2)*$L$2/($S$2*$T$2)*$U$2) -> 206.9353333 | AL196: -1.066666667 | AM196: 579.4318333 | AN196: -2.986666667 | AP196: =$AC196+(($AB196*$X$2)*($O$2/($R$2*$T$2))) -> 0.1175416149 | AQ196: -0.0005208330667 | AR196: 0.1030416149 | AS196: -0.0005208330667 | AT196: =AD196 -> 0.002 | AU196: 0 | AW196: 70.74563045 | AX196: -0.3645831467 | AY196: =$AD196+(($AB196*$W$2)*$M$2/($S$2*$T$2)*$U$2) -> 70.73113045 | AZ196: -0.3645831467 | BB196: =$AC196+(($AB196*$X$2)*(($O$2+$P$2)/($R$2*$T$2)))+($G$2*1) -> 0.4556926243 | BC196: -0.0008463537333
AB197: 195 | AC197: =IF($AB197<$Y$4,$Y$2,(IF(($AC196-$Y$3)>0,$AC196-$Y$3,0))) -> 0.0165 | AD197: =IF($AB197<$AA$4,$AA$2,(IF(($AD196-$AA$3)>0,$AD196-$AA$3,0))) -> 0.002 | AF197: =$AC197+(($AB197*$W$2)*$K$2/($Q$2*$T$2)) -> 374.4165 | AG197: -1.92 | AI197: =$AC197+(($AB197*$W$2)*$L$2/($Q$2*$T$2)) -> 208.0165 | AJ197: =AI196-AI197 -> -1.066666667 | AK197: 208.002 | AL197: -1.066666667 | AM197: 582.4185 | AN197: -2.986666667 | AP197: 0.118062448 | AQ197: =AP196-AP197 -> -0.0005208330667 | AR197: 0.103562448 | AS197: -0.0005208330667 | AT197: 0.002 | AU197: 0 | AW197: =$AC197+(($AB197*$W$2)*$M$2/($Q$2*$T$2)) -> 71.1102136 | AX197: =AW196-AW197 -> -0.3645831467 | AY197: 71.0957136 | AZ197: =AY196-AY197 -> -0.3645831467 | BB197: 0.456538978 | BC197: =BB196-BB197 -> -0.0008463537333
AB198: 196 | AC198: 0.0165 | AD198: 0.002 | AF198: 376.3365 | AG198: -1.92 | AI198: 209.0831667 | AJ198: -1.066666667 | AK198: 209.0686667 | AL198: -1.066666667 | AM198: 585.4051667 | AN198: -2.986666667 | AP198: 0.1185832811 | AQ198: -0.0005208330667 | AR198: 0.1040832811 | AS198: -0.0005208330667 | AT198: 0.002 | AU198: 0 | AW198: 71.47479675 | AX198: -0.3645831467 | AY198: 71.46029675 | AZ198: -0.3645831467 | BB198: 0.4573853317 | BC198: -0.0008463537333
AB199: 197 | AC199: 0.0165 | AD199: 0.002 | AF199: 378.2565 | AG199: -1.92 | AI199: 210.1498333 | AJ199: -1.066666667 | AK199: 210.1353333 | AL199: -1.066666667 | AM199: 588.3918333 | AN199: -2.986666667 | AP199: 0.1191041141 | AQ199: -0.0005208330667 | AR199: 0.1046041141 | AS199: -0.0005208330667 | AT199: 0.002 | AU199: 0 | AW199: 71.83937989 | AX199: -0.3645831467 | AY199: 71.82487989 | AZ199: -0.3645831467 | BB199: 0.4582316855 | BC199: -0.0008463537333
AB200: 198 | AC200: 0.0165 | AD200: 0.002 | AF200: 380.1765 | AG200: -1.92 | AI200: 211.2165 | AJ200: -1.066666667 | AK200: 211.202 | AL200: -1.066666667 | AM200: 591.3785 | AN200: -2.986666667 | AP200: 0.1196249472 | AQ200: -0.0005208330667 | AR200: 0.1051249472 | AS200: -0.0005208330667 | AT200: 0.002 | AU200: 0 | AW200: 72.20396304 | AX200: -0.3645831467 | AY200: 72.18946304 | AZ200: -0.3645831467 | BB200: 0.4590780392 | BC200: -0.0008463537333
... 925 more rows

Sheet Graph (hidden)
